{"text_format":"1","workbook":"xlsx","n_sheets":5,"sheets":["Зааварчилгаа","Байгууллагын өөрийн үнэлгээ","Result_1","Result_2","Үнэлгээ тайлбар"],"not_rendered":{"charts":0,"images":1,"macros":1,"external_links":0,"defined_names":9,"comments":0,"pivot_tables":0},"unopened":[],"bounds":{"document_bytes":16777216,"sheet_cells":100000,"rows_first":2000,"rows_last":500,"rows_between":2000,"halvings":0,"cell_chars":16384,"cell_head_chars":4096},"cells_cut":0,"cells_raw":0,"read":"whole","date_system":"1900"}

{"sheet":"Зааварчилгаа","index":0,"n_rows":8,"n_cols":2,"rows_kept":8,"cut":false,"hidden":false,"merged":[[0,0,0,1],[1,0,1,1]]}
["Санхүүгийн зохицуулах хорооны зохицуулалт дахь байгууллагуудын комплайнсын эрсдэлийн үнэлгээний асуулгад хариулах зааварчилгаа"]
["Сайн байна уу, \nКомплайнсын эрсдэлийн өөрийн үнэлгээ хийх зааварчилгааг доор харуулав Үүнд: "]
[1,"Байгууллага комплайнсын эрсдэлийн өөрийн үнэлгээг хийхдээ эксел файлын зааварчилгааны дагуу “The Wolfsberg Group” санхүүгийн байгууллагын комплайнсын эрсдэлийг тодорхойлох 10 бүлэг, 43 багц, 95 асуулт бүхий асуумжид 5 сонголтот хувилбартай хариултуудаас өөрийн байгууллагад тохирохыг сонгоно."]
[2,"Асуулт бүрийн онцлогоос хамаарч хариултын 5 ялгаатай хувилбараас оновчтой 1 хувилбарыг сонгох боломжтой байдлаар асуумж бэлтгэгдсэн. 43 багц асуултуудын зарим хэсэг нь нарийвчилсан байдлаар дэд асуултуудаас бүрдэх бөгөөд дэд асуултууд нэгтгэгдэж 1 багц хариулт, хэд хэдэн багц хариултууд нэгтгэгдэж, 1 бүлгийн үнэлгээ хийгдэх байдлаар 43 багц, 10 бүлэг, 4 төрлийн багц эрсдэл үнэлэгдэнэ."]
[3,"Сонгох хариулт бүтэн харагдахгүй нөхцөлд та тухайн хариултыг дарж бүтнээр нь унших боломжтой."]
[4,"Чанарын асуулгууд заавал сонгох хариулттай тул та аль нэг хариултыг сонгох шаардлагатай. Хариултын сонголт хийгдээгүй тохиолдолд эрсдэлийн үнэлгээ хийгдэхгүй болохыг анхаарна уу."]
[5,"Асуултын хариултаас хамааруулан шаардлагатай тохиолдолд нэмэлт мэдээлэл болон тайлбар оруулах хэсэгт мэдээллээ оруулахыг анхаарна уу. Энэ хэсэгт сонголт хийх боломжгүй, зөвхөн мэдээлэл болон тайлбарыг текстээр оруулна."]
[6,"Мөн тухайн асуултын хувьд эрсдэл гарсан тохиолдолд байгууллагад учирч болзошгүй гарз хохирол буюу байгууллагад үзүүлэх үр нөлөөг 1-5 хүртэл оноогоор (1- маш багаас, 5- маш их үр нөлөөтэй) хэмжиж, үнэлнэ. Комплайнсын эрсдэлийн үр нөлөөг үнэлэх шалгуурыг доор харуулав. Үр нөлөөний шалгуурын дагуу үнэлгээ өгөхдөө хамгийн хялбар байдлаар тухайн асуулт буюу асуудлын хувьд хэдэн үзүүлэлтэд үр нөлөө үзүүлнэ гэж тодорхойлсноос хамааран ижил хувиар үнэлгээг жинлэн тооцох боломжтой."]

{"sheet":"Байгууллагын өөрийн үнэлгээ","index":1,"n_rows":137,"n_cols":4,"rows_kept":137,"cut":false,"hidden":false,"merged":[[136,0,138,3],[17,0,17,2],[81,1,81,2],[96,1,96,2],[85,1,85,2],[1,0,1,3],[119,0,119,2],[60,1,60,2]]}
[]
["Хавсралт 3: Байгууллагын комплайнсын эрсдэлийн өөрийн үнэлгээний асуумж"]
[]
[]
["№","Асуулт ","Хариулт","Эрсдэлийн үр нөлөө"]
["1. ХУУЛИЙН ЭТГЭЭД & ӨМЧИЙН ХЭЛБЭР"]
[1,"Хуулийн этгээдийн оноосон нэр"]
[2,"Танай байгууллагын салбар, нэгжийн тоо"]
[3,"Байгууллагын албан ёсны бүртгэлтэй хаяг (өөрчлөгдсөн бол сүүлийн хаяг)"]
[4,"Үйл ажиллагаа явуулж буй албан ёсны хаяг (Дээрх бичсэнээс өөр тохиолдолд) "]
[5,"Үйл ажиллагаа явуулж буй хугацаа"]
[6,"Байгууллагын зохион байгуулалтын хэлбэр"]
["7","Олон нийтэд хувьцаагаа арилжаалдаг эсэх"]
[8,"Танай байгууллага эсвэл түүний аль нэг салбар нь өөр улсад тусгай зөвшөөрөлтэй үйл ажиллагаа явуулдаг уу?"]
["8 a","Хэрэв Тийм бол үйл ажиллагаа явуулдаг холбогдох салбар/бизнес нэгжүүдийн нэр, байршиж буй улсын мэдээллийг оруулна уу"]
["9","Танай байгууллага цахимаар үйлчилгээ үзүүлдэг үү?"]
["9 а","Хэрэв тийм бол ямар төрлийн үйлчилгээ цахимаар явуулдаг вэ? Хариултын хэсэгт дурьдана уу."]
["2. ЁС ЗҮЙН ЭРСДЭЛ"]
["2.1","Бизнесийн ёс зүй, нийгмийн хариуцлага"]
["10","Танай байгууллага \"Компанийн засаглалын кодекс\"-ийг мөрдөх үүрэг хүлээсэн бол уг кодексийн хэрэгжилтийг үнэлнэ үү."]
["11","Танай байгууллагад дараах дүрэм, журам, заавар, хөтөлбөр байдаг уу? Хэрэгжилтийг үнэлнэ үү."]
["11 a","Ёс зүйн дүрэм"]
["11 b","Комплайнсын хөтөлбөр"]
["11 c","Комплайнсын хяналтын журам, заавар"]
["11 d","Хөдөлмөрийн дотоод журам"]
["11 e","Мэдээллийн ил тод байдал, тайлагналын журам"]
["11 f","Сонирхлын зөрчлийг зохицуулах журам"]
["12","Танай байгууллага шүгэл үлээх үйл ажиллагааг зохицуулсан журам заавар, бүтэцтэй эсэх? хэрэгжилтийг үнэлнэ үү. "]
["13","Байгууллагын эрх бүхий албан тушаалтан, ажилтнуудад зориулсан сургалтын жилийн хөтөлбөрийг баталж, хэрэгжүүлдэг эсэх"]
["14","Танай байгууллага харилцагчийн мэдээллийн аюулгүй байдлыг зохицуулсан журам заавартай эсэх?"]
["2.2","Аудит ба залилан"]
["15","Танай байгууллагад төрийн хяналт, зохицуулагчийн хяналт шалгалтаас гадна байгууллагын эрсдэлийн үнэлгээ, МУТС, хээл хахууль авилга, залилангийн эсрэг үйл ажиллагаа болон хориг арга хэмжээний хэрэгжилтийг үнэлдэг чиг үүрэг бүхий нэгж, ажилтан, эсвэл хөндлөнгийн этгээд байдаг уу? Хэрэгжилтийг үнэлнэ үү."]
["16","Танай байгууллагад хээл хахууль авилга, залилантай тэмцэх бодлогын баримт бичиг, журам, заавар бий юу?   "]
["17","Танай байгууллага залилан мэхлэхийг илрүүлэх бодит цагийн хяналттай юу?"]
["18","Танай байгууллагын үйл явц нь залилангийн хяналтыг дэмжих нэмэлт мэдээлэл цуглуулдаг системтэй байдаг уу, тухайлбал: IP хаяг, GPS байршил болон/эсвэл төхөөрөмжийн ID зэрэг багтдаг уу?"]
["3. НЭР ХҮНДИЙН ЭРСДЭЛ"]
["3.1","Хээл, хахууль ба авилга"]
["19","Байгууллага нь хээл хахууль, авлигаас урьдчилан сэргийлэх, илрүүлэх, мэдээлэх зорилгоор холбогдох ХХА-ын дүрэм, шаардлагад нийцсэн бодлого, журамтай юу?"]
["20","Байгууллагын дотоод аудитын чиг үүрэг бүхий алба/нэгж эсвэл бусад бие даасан гуравдагч этгээд ХХА-ийн бодлого, журмыг давхар хянадаг уу?"]
["21","Байгууллага ХХА-ын сургалтыг дараах хүмүүст ордог уу? 1) Удирдах зөвлөл, гүйцэтгэх зөвлөлийн хороод буюу удирдах түвшиний ажилтнууд. 2) Хамгаалалтын I, II, III шугамын ажилтнууд. 3) Гуравдагч байгууллагын ажилтнууд. 4) Гэрээт ажилтнууд."]
["3.2","Харилцагчийг таньж мэдэх үйл ажиллагаа"]
["22","Танай байгууллага харилцагчийн хувийн мэдээллийг тулган хянаж, баталгаажуулдаг уу?"]
["23","Харилцагчийг таних ажиллагааны талаар байгууллагын дүрэм, журамд тусгасан байдаг уу? (Жишээ: Ямар хугацаанд багтаан шалган шийдвэрлэх гэх мэт)"]
["24","Харилцагчийг таних ажиллагаанд дараах мэдээллийг цуглуулан нягталж, мэдээллийг хадгалдаг эсэх:"]
["24 a","Харилцагчийг тодорхойлох албан баримтууд"]
["24 b","Бизнесийн үйл ажиллагаа, шинээр эрхлэх бизнесийн мэдээлэл"]
["24 c","Бизнесийн, эсвэл хөдөлмөр эрхлэлтийн байдал"]
["24 d","Өмчлөл"]
["24 e","Санхүүгийн эх үүсвэр"]
["24 f","Эд хөрөнгийн эх үүсвэр "]
["25","Дараах мэдээллүүдийг тодорхойлдог эсэх:"]
["25 a","Эцсийн хүлээн авагч"]
["25 b","Эцсийн хүлээн авагчийн мэдээллийг тулган баталгаажуулдаг эсэх"]
["25 c","Баталгаат гарын үсгийг заавал баталгаажуулдаг эсэх"]
["25 d","Байгууллагын удирдлагын бүтэц, үйл ажиллагаан дотоод зохион байгуулалт"]
["25 e","Бусад холбогдох талууд"]
["26","Харилцагчдаа эрсдэлээр нь ангилдаг эсэх"]
["27","Харилцагч болон холбогдох талуудыг улс төрд нөлөө бүхий этгээд мөн эсэхийг шалгах эрсдэлд суурилсан аргатай эсэх"]
["28","Улс төрд нөлөө бүхий этгээдийг тодорхойлох бодлогын баримт бичиг, журам, заавартай эсэх"]
["29","Харилцагчийг таньж мэдэх үйл ажиллагаа нь эрсдэлийн зэрэглэлд үндэслэн тодорхой давтамжтайгаар шинэчлэгддэг эсэх"]
["30","Доорх жагсаалтаас аль ангиллын салбар, эсвэл харилцагчид нэмэлт мэдээлэл шаардан, таньж мэдэх үйл ажиллагааг явуулдаг вэ? Тэдгээр салбар, эсвэл харилцагчид санхүүгийн гэмт хэргээс урьдчилан сэргийлэх журмаар үйлчилгээ үзүүлэхээс татгалздаг эсэх:"]
["30 a","Зэвсэгт хүчин"]
["30 b","Элчийн сайдын яам/Консулын газар"]
["30 c","Уул уурхай"]
["30 d","Бөөний худалдаа эрхлэгч"]
["30 e","Худалдааны байгууллага"]
["30 f","Мөнгөн гуйвуулга болон валютын арилжаа эрхлэгч"]
["30 g","Харилцах дансгүй харилцагч"]
[" 30 h","Төрийн бус байгууллага"]
[" 30 i","Харъалалгүй иргэн, эсхүл байнгын бус оршин суугч"]
["30 g","Цөмийн эрчим хүчний байгууллага"]
["30 k","Мөнгөн төлбөр тооцооны үйлчилгээ үзүүлэгч"]
[" 30 l","Улс төрд нөлөө бүхий этгээд"]
["30 m","Улс төрд нөлөө бүхий этгээдтэй хамаарал бүхий хүн"]
["30 n","Халхавч банк"]
["30 o","Аялал жуулчлалын компани"]
["30 p","Хуучин автомашины худалдаа"]
["30 q","Хандив, тусламжийн байгууллага"]
["31","Хэрэв үйлчилгээ үзүүлэхээс татгалзсан бол хязгаарлалтын талаар дэлгэрэнгүй мэдээлэл өгнө үү."]
["4. МӨНГӨ УГААХ, ТЕРРОРИЗМЫГ САНХҮҮЖҮҮЛЭХ ЭРСДЭЛ"]
["4.1 ","МУТС ба хориг арга хэмжээ, бодлогын баримт бичиг, дүрэм, журам"]
["32","Танай байгууллага урьдчилан сэргийлэх, илрүүлэх, тайлагнах зорилгоор МУТС хориг арга хэмжээний зохицуулалт, шаардлагад нийцсэн бодлогын баримт бичиг, журам, зааврыг боловсруулсан эсэх:"]
["32 a","Мөнгө угаалтын эсрэг"]
["32 b","Терроризмыг санхүүжүүлэхтэй тэмцэх"]
["32 c","Хориг арга хэмжээний зөрчлийн эсрэг"]
["33","Танай байгууллага дараах үйл ажиллагааг зохицуулсан бодлогын баримт бичиг, журам, заавартай эсэх?"]
["33 a","Хуурамч, зохиомол данс нээх, хөтлөхийг хориглох"]
["33 b","Тусгай зөвшөөрөлгүй санхүүгийн байгууллагад данс нээлгэх, хөтлөхийг хориглох"]
["33 c","Хууль тогтоомжийг зөрчиж тусгай зөвшөөрөлгүйгээр үйл ажиллагаа эрхэлж буй хуулийн этгээдэд үйлчилгээ үзүүлж буй хуулийн этгээдэд данс нээх, хөтлөхийг хориглох"]
["33 d","Хууль тогтоомжийг зөрчиж тусгай зөвшөөрөлгүйгээр үйл ажиллагаа эрхэлж буй хуулийн этгээдэд данс нээх, хөтлөхийг хориглох"]
["33 e","Дотоод болон гадаадын төрийн бус байгуулага /ТББ/-ууд, тэдгээрийн эрх бүхий албан тушаалтнуудын нэгдмэл сонирхолтой этгээдтэй харилцах эрсдэлийг үнэлэх"]
["34","Ажилтнуудын тодорхойлсон санхүүгийн гэмт хэрэгтэй холбогдох эрсдэлүүд/сэжигтэй байж болзошгүй үйл ажиллагааг үргэлжлүүлэн судалж шалгадаг эсэх?"]
["35","Хориг арга хэмжээ, улс төрийн хамаарал бүхий этгээд сэжигтэй шалгах мэдээллийн хэрэгсэл/мэдээг шалгаж нягталдаг эсэх?"]
["36","Байгууллагын эрсдэл даах чадварын журам, заавар эсвэл бизнесийн орчинд эрсдэлийн хил хязгаарыг тодорхойлсон баримт бичигтэй эсэх?"]
["37","Байгууллага нь холбогдох хууль тогтоомжид нийцсэн зөрчилтэй холбоотой хэрэг бүртгэл хөтлөх, мэдээллийг хадгалах журамтай эсэх?"]
["4.2","МУТС ба хориг арга хэмжээний хөтөлбөр"]
["38","Танай байгууллага дараах бүрэлдэхүүн хэсгүүдийг (38а-38n) Комплайнсын хөтөлбөртөө тусгадаг уу? Хэрэгжилтээ үнэлнэ үү."]
["38 a","Мэргэжлийн ур чадвар, туршлага бүхий ажилтнуудыг тогтвортой ажиллуулах"]
["38 b","Мэдээллийн сэжигтэй болон зөрүүтэй байдалд шинжилгээ хийх"]
["38 c","Эцсийн өмчлөгчийг тогтоох"]
["38 d","Бэлэн мөнгөний тайлагнал"]
["38 e","Харилцагчийг таньж мэдэх үйл ажиллагаа"]
["38 f","Тусгай шалгалт явуулах үйл ажиллагааны талаар"]
["38 g","Хэсэгчилсэн хугацааны эргэн хяналт хийх "]
["38 h","Бусад бодлого, дүрэм журамтай уялдаатай байх"]
["38 i","Улс төрийн нөлөө бүхий этгээдийг шалгаж, шинжилгээ хийх"]
["38 j","Эрсдэлийн үнэлгээ хийх "]
["38 k","Хориг арга хэмжээг жагсаалттай тулган шалгах"]
["38 l","Сэжигтэй үйл ажиллагааг тайлагнах талаар"]
["38 m","Комплайнсын талаарх мэдлэг, боловсрол олгох сургалт хийх"]
["38 n","Гүйлгээний хяналт тавих"]
["39","МУТС хориг арга хэмжээний бодлогын хэрэгжилтэд ТУЗ, эсхүл гүйцэтгэх удирдлага ямар давтамжтайгаар хяналт тавьж, сайжруулалт хийдэг вэ?"]
["40","Танай байгууллага МУТС ба хориг арга хэмжээний хөтөлбөрийг хэрэгжүүлэх зорилгоор мэргэжлийн байгууллагаас зөвлөгөө авдаг уу?"]
["41","Зөвлөгөө авсан тохиолдолд энэ талаар дэлгэрэнгүй мэдээлэл өгнө үү."]
["4.3 ","Хориг арга хэмжээ"]
["42","Танай байгууллагад хориг арга хэмжээний бодлогын баримт бичиг, журам, заавар байдаг уу? хэрэгжилтийг үнэлнэ үү."]
["43","Танай байгууллагад бусад аж ахуй нэгжийн данс, үйлчилгээг гуравдагч этгээд ашиглахаас сэргийлсэн бодлогын баримт бичиг, журам, заавар байдаг уу?"]
["44","Танай байгууллага хориг арга хэмжээтэй холбоотой харилцагчийн талаар мэдээлэл цуглуулж, шалгадаг уу?"]
["45","Хориг арга хэмжээг шалгахад ашигладаг арга хэмжээний жагсаалтыг бичнэ үү?"]
["5. ҮЙЛ АЖИЛЛАГААНЫ ЭРСДЭЛ"]
[5.0999999999999996,"Хяналт, тайлагнал"]
[46,"Танай байгууллага сэжигтэй үйл ажиллагааг илрүүлэх, тайлагнах эрсдэлд суурилсан бодлогын баримт бичиг, журам, заавартай юу?"]
[47,"Сэжигтэй үйл ажиллагааг хянахдаа ямар арга, аргачлалыг хэрэглэдэг вэ?"]
["47 a","Холимог аргачлалыг сонгосон бол ямар төрлийн гүйлгээг гар аргаар хянадаг вэ? Тайлбар бичнэ үү."]
[48,"Танай байгууллагад сэжигтэй гүйлгээг мэдээлэх зохицуулалт бий юу?"]
[49,"Танай байгууллагад харилцагчийн гүйлгээ, үйл ажиллагаанд хяналт тавихтай холбоотой гарч буй асуудлыг хянах, шийдвэрлэх бодлогын баримт бичиг, журам, заавар байдаг уу?"]
[5.2,"Төлбөрийн ил тод байдал"]
[50,"Цахим шилжүүлгийн холбогдох мэдээллийн үнэн зөв эсэхэд хяналт тавих журам, заавар байдаг уу?"]
[51,"Цахим шилжүүлгийн холбогдох мэдээллийн үнэн зөв эсэхэд хяналт тавьдаг уу? Хэрэгжилтийг үнэлнэ үү."]
["51 a","Хэрэв \"Хангалтгүй эсвэл муу\" сонголт хийсэн бол тайлбар оруулна уу"]
["5.3","Сургалт ба мэдлэг боловсрол "]
["52","Дараах сургалтуудыг ямар давтамжтай явуулдаг вэ?"]
["52 a","Байгууллагын бүтээгдэхүүн, үйлчилгээтэй холбоотой мөнгө угаах болон терроризмыг санхүүжүүлэх эрсдэл"]
["52 b","МУТС болон хориг арга хэмжээний зөрчлийг хянах, шийдвэрлэх үйл ажиллагаа"]
["52 c","Комплайнсын эрсдэлийн удирдлага"]
["53","Дээрх сургалтад доорх оролцогч талуудаас алиныг нь хамруулдаг вэ? \n1) ТУЗ, гүйцэтгэх удирдлага\n2) Хамгаалалтын I, II, III шугамын ажилтнууд\n3) Гуравдагч байгууллагын ажилтнууд\n4) Гэрээт ажилтнууд"]
["Баталгаажуулах хэсэг\n\n\n\n\n \n_____________________________________________________________________________ (Байгууллагын нэр) \n\n\n\nI, _______________________________________________  (Хамгаалалтын II шугам - Комплайнсын ажилтан, мэдээлэх эрх бүхий этгээд), судалгааны асуултыг сайтар уншиж танилцаад үнэн зөв бөглөсөн болно.\n\n\n\n\n\n________________________________________________  (Гарын үсэг & Огноо)\n\n\n"]

{"sheet":"Result_1","index":2,"n_rows":136,"n_cols":6,"rows_kept":136,"cut":false,"hidden":false,"merged":[[60,1,60,2],[81,1,81,2],[85,1,85,2],[96,1,96,2],[1,0,1,5],[3,3,3,5],[3,0,3,2],[43,1,43,2],[50,1,50,2],[6,3,16,5]]}
[]
["Хавсралт 4 : Комплайнсын эрсдэлийн нэгдсэн үнэлгээний загвар"]
[]
["Асуумж",null,null,"Байгууллагын өөрийн үнэлгээ"]
["№","Асуулт ","Хариулт","Эрсдэлийн нөлөө","Эрсдэлийн магадлал","Эрсдэлийн өөрийн үнэлгээ"]
["1. ХУУЛИЙН ЭТГЭЭД & ӨМЧИЙН ХЭЛБЭР"]
[1,"Хуулийн этгээдийн оноосон нэр",{"$f":"'Байгууллагын өөрийн үнэлгээ'!C7","v":0}]
[2,"Танай байгууллагын салбар, нэгжийн тоо",{"$f":"'Байгууллагын өөрийн үнэлгээ'!C8","v":0}]
[3,"Байгууллагын албан ёсны бүртгэлтэй хаяг (өөрчлөгдсөн бол сүүлийн хаяг)",{"$f":"'Байгууллагын өөрийн үнэлгээ'!C9","v":0}]
[4,"Үйл ажиллагаа явуулж буй албан ёсны хаяг (Дээрх бичсэнээс өөр тохиолдолд) ",{"$f":"'Байгууллагын өөрийн үнэлгээ'!C10","v":0}]
[5,"Үйл ажиллагаа явуулж буй хугацаа",{"$f":"'Байгууллагын өөрийн үнэлгээ'!C11","v":0}]
[6,"Байгууллагын зохион байгуулалтын хэлбэр",{"$f":"'Байгууллагын өөрийн үнэлгээ'!C12","v":0}]
["7","Олон нийтэд хувьцаагаа арилжаалдаг эсэх",{"$f":"'Байгууллагын өөрийн үнэлгээ'!C13","v":0}]
[8,"Танай байгууллага эсвэл түүний аль нэг салбар нь өөр улсад тусгай зөвшөөрөлтэй үйл ажиллагаа явуулдаг уу?",{"$f":"'Байгууллагын өөрийн үнэлгээ'!C14","v":0}]
["8 a","Хэрэв Тийм бол үйл ажиллагаа явуулдаг холбогдох салбар/бизнес нэгжүүдийн нэр, байршиж буй улсын мэдээллийг оруулна уу",{"$f":"'Байгууллагын өөрийн үнэлгээ'!C15","v":0}]
["9","Танай байгууллага цахимаар үйлчилгээ үзүүлдэг үү?",{"$f":"'Байгууллагын өөрийн үнэлгээ'!C16","v":0}]
["9 а","Хэрэв тийм бол ямар төрлийн үйлчилгээ цахимаар явуулдаг вэ? Хариултын хэсэгт дурьдана уу.",{"$f":"'Байгууллагын өөрийн үнэлгээ'!C17","v":0}]
["2. ЁС ЗҮЙН ЭРСДЭЛ",null,null,{"$f":"IF(SUM(D19,D31)<=1,\"N/A\",IF(SUM(D19,D31)<=3,1,IF(SUM(D19,D31)<=5,2,IF(SUM(D19,D31)<=7,3,IF(SUM(D19,D31)<=9,4,5)))))","v":"N/A"},{"$f":"IF(SUM(E19,E31)<=1,\"N/A\",IF(SUM(E19,E31)<=3,1,IF(SUM(E19,E31)<=5,2,IF(SUM(E19,E31)<=7,3,IF(SUM(E19,E31)<=9,4,5)))))","v":"N/A"},{"$f":"IFERROR(VLOOKUP(D18*E18,'Үнэлгээ тайлбар'!$B$2:$C$15,2,FALSE),\"N/A\")","v":"N/A"}]
["2.1","Бизнесийн ёс зүй, нийгмийн хариуцлага",null,{"$f":"IF(SUM(D20,D21,D28:D30)<=4,\"N/A\",IF(SUM(D20,D21,D28:D30)<=9,1,IF(SUM(D20,D21,D28:D30)<=13,2,IF(SUM(D20,D21,D28:D30)<=17,3,IF(SUM(D20,D21,D28:D30)<=21,4,IF(SUM(D20,D21,D28:D30)<=25,5,\"N/A))))\"))))))","v":"N/A"},{"$f":"IF(SUM(E20,E21,E28:E30)<=4,\"N/A\",IF(SUM(E20,E21,E28:E30)<=9,1,IF(SUM(E20,E21,E28:E30)<=13,2,IF(SUM(E20,E21,E28:E30)<=17,3,IF(SUM(E20,E21,E28:E30)<=21,4,IF(SUM(E20,E21,E28:E30)<=25,5,\"N/A))))\"))))))","v":"N/A"},{"$f":"IFERROR(VLOOKUP(D19*E19,'Үнэлгээ тайлбар'!$B$2:$C$15,2,FALSE),\"N/A\")","v":"N/A"}]
["10","Танай байгууллага \"Компанийн засаглалын кодекс\"-ийг мөрдөх үүрэг хүлээсэн бол уг кодексийн хэрэгжилтийг үнэлнэ үү?",{"$f":"'Байгууллагын өөрийн үнэлгээ'!C20","v":0},{"$f":"'Байгууллагын өөрийн үнэлгээ'!D20","v":0},{"$f":"IF(C20=\"Маш сайн\",1,IF(C20=\"Сайн\",2,IF(C20=\"Дунд\",3,IF(C20=\"Муу\",4,IF(C20=\"Огт хэрэгжүүлдэггүй\",5,0)))))","v":0},{"$f":"IFERROR(VLOOKUP(D20*E20,'Үнэлгээ тайлбар'!$B$2:$C$15,2,FALSE),\"N/A\")","v":"N/A"}]
["11","Танай байгууллага дараах бодлогын баримт бичиг, дүрэм, журам, зааврыг батлан мөрддөг эсэх? ",null,{"$f":"IF(SUM(D22:D27)<=5,\"N/A\",IF(SUM(D22:D27)<=11,1,IF(SUM(D22:D27)<=16,2,IF(SUM(D22:D27)<=20,3,IF(SUM(D22:D27)<=25,4,5)))))","v":"N/A"},{"$f":"IF(SUM(E22:E27)<=5,\"N/A\",IF(SUM(E22:E27)<=11,1,IF(SUM(E22:E27)<=16,2,IF(SUM(E22:E27)<=20,3,IF(SUM(E22:E27)<=25,4,5)))))","v":"N/A"},{"$f":"IFERROR(VLOOKUP(D21*E21,'Үнэлгээ тайлбар'!$B$2:$C$15,2,FALSE),\"N/A\")","v":"N/A"}]
["11 a","Ёс зүйн дүрэм",{"$f":"'Байгууллагын өөрийн үнэлгээ'!C22","v":0},{"$f":"'Байгууллагын өөрийн үнэлгээ'!D22","v":0},{"$f":"IF(C22=\"Байдаг. Хэрэгжилт хангалттай\",1,IF(C22=\"Байдаг ч хэрэгжилт хангалттай бус\",2,IF(C22=\"Байдаг ч сайжруулах шаардлагатай\",3,IF(C22=\"Байхгүй ч одоо боловсруулж байгаа\",4,IF(C22=\"Байдаггүй\",5,0)))))","v":0},{"$f":"IFERROR(VLOOKUP(D22*E22,'Үнэлгээ тайлбар'!$B$2:$C$15,2,FALSE),\"N/A\")","v":"N/A"}]
["11 b","Комплайнсын хөтөлбөр",{"$f":"'Байгууллагын өөрийн үнэлгээ'!C23","v":0},{"$f":"'Байгууллагын өөрийн үнэлгээ'!D23","v":0},{"$f":"IF(C23=\"Байдаг. Хэрэгжилт хангалттай\",1,IF(C23=\"Байдаг ч хэрэгжилт хангалттай бус\",2,IF(C23=\"Байдаг ч сайжруулах шаардлагатай\",3,IF(C23=\"Байхгүй ч одоо боловсруулж байгаа\",4,IF(C23=\"Байдаггүй\",5,0)))))","v":0},{"$f":"IFERROR(VLOOKUP(D23*E23,'Үнэлгээ тайлбар'!$B$2:$C$15,2,FALSE),\"N/A\")","v":"N/A"}]
["11 c","Комплайнсын хяналтын журам, заавар",{"$f":"'Байгууллагын өөрийн үнэлгээ'!C24","v":0},{"$f":"'Байгууллагын өөрийн үнэлгээ'!D24","v":0},0,{"$f":"IFERROR(VLOOKUP(D24*E24,'Үнэлгээ тайлбар'!$B$2:$C$15,2,FALSE),\"N/A\")","v":"N/A"}]
["11 d","Хөдөлмөрийн дотоод журам",{"$f":"'Байгууллагын өөрийн үнэлгээ'!C25","v":0},{"$f":"'Байгууллагын өөрийн үнэлгээ'!D25","v":0},0,{"$f":"IFERROR(VLOOKUP(D25*E25,'Үнэлгээ тайлбар'!$B$2:$C$15,2,FALSE),\"N/A\")","v":"N/A"}]
["11 e","Мэдээллийн ил тод байдал, тайлагналын журам",{"$f":"'Байгууллагын өөрийн үнэлгээ'!C26","v":0},{"$f":"'Байгууллагын өөрийн үнэлгээ'!D26","v":0},0,{"$f":"IFERROR(VLOOKUP(D26*E26,'Үнэлгээ тайлбар'!$B$2:$C$15,2,FALSE),\"N/A\")","v":"N/A"}]
["11 f","Сонирхлын зөрчлийг зохицуулах журам",{"$f":"'Байгууллагын өөрийн үнэлгээ'!C27","v":0},{"$f":"'Байгууллагын өөрийн үнэлгээ'!D27","v":0},0,{"$f":"IFERROR(VLOOKUP(D27*E27,'Үнэлгээ тайлбар'!$B$2:$C$15,2,FALSE),\"N/A\")","v":"N/A"}]
["12","Танай байгууллага шүгэл үлээх үйл ажиллагааг зохицуулсан журам заавар, бүтэцтэй эсэх? хэрэгжилтийг үнэлнэ үү. ",{"$f":"'Байгууллагын өөрийн үнэлгээ'!C28","v":0},{"$f":"'Байгууллагын өөрийн үнэлгээ'!D28","v":0},{"$f":"IF(C28=\"Маш сайн\",1,IF(C28=\"Сайн\",2,IF(C28=\"Дунд\",3,IF(C28=\"Муу\",4,IF(C28=\"Огт хэрэгжүүлдэггүй\",5,0)))))","v":0},{"$f":"IFERROR(VLOOKUP(D28*E28,'Үнэлгээ тайлбар'!$B$2:$C$15,2,FALSE),\"N/A\")","v":"N/A"}]
["13","Байгууллагын эрх бүхий албан тушаалтан, ажилтнуудад зориулсан сургалтын жилийн хөтөлбөрийг баталж, хэрэгжүүлдэг эсэх",{"$f":"'Байгууллагын өөрийн үнэлгээ'!C29","v":0},{"$f":"'Байгууллагын өөрийн үнэлгээ'!D29","v":0},0,{"$f":"IFERROR(VLOOKUP(D29*E29,'Үнэлгээ тайлбар'!$B$2:$C$15,2,FALSE),\"N/A\")","v":"N/A"}]
["14","Танай байгууллага харилцагчийн мэдээллийн аюулгүй байдлыг зохицуулсан журам заавартай эсэх?",{"$f":"'Байгууллагын өөрийн үнэлгээ'!C30","v":0},{"$f":"'Байгууллагын өөрийн үнэлгээ'!D30","v":0},0,{"$f":"IFERROR(VLOOKUP(D30*E30,'Үнэлгээ тайлбар'!$B$2:$C$15,2,FALSE),\"N/A\")","v":"N/A"}]
["2.2","Аудит ба залилан",null,{"$f":"IF(SUM(D32:D35)<=3,\"N/A\",IF(SUM(D32:D35)<=7,1,IF(SUM(D32:D35)<=10,2,IF(SUM(D32:D35)<=14,3,IF(SUM(D32:D35)<=17,4,IF(SUM(D32:D35)<=20,5,\"N/A))))\"))))))","v":"N/A"},{"$f":"IF(SUM(E32:E35)<=3,\"N/A\",IF(SUM(E32:E35)<=7,1,IF(SUM(E32:E35)<=10,2,IF(SUM(E32:E35)<=14,3,IF(SUM(E32:E35)<=17,4,IF(SUM(E32:E35)<=20,5,\"N/A))))\"))))))","v":"N/A"},{"$f":"IFERROR(VLOOKUP(D31*E31,'Үнэлгээ тайлбар'!$B$2:$C$15,2,FALSE),\"N/A\")","v":"N/A"}]
["15","Танай байгууллагад төрийн хяналт, зохицуулагчийн хяналт шалгалтаас гадна байгууллагын эрсдэлийн үнэлгээ, МУТС, хээл хахууль авилга, залилангийн эсрэг үйл ажиллагаа болон хориг арга хэмжээний хэрэгжилтийг үнэлдэг чиг үүрэг бүхий нэгж, ажилтан, эсвэл хөндлөнгийн этгээд байдаг уу? Хэрэгжилтийг үнэлнэ үү.",{"$f":"'Байгууллагын өөрийн үнэлгээ'!C32","v":0},{"$f":"'Байгууллагын өөрийн үнэлгээ'!D32","v":0},{"$f":"IF(C32=\"Байдаг. Хэрэгжилт хангалттай\",1,IF(C32=\"Байдаг ч хэрэгжилт хангалттай бус\",2,IF(C32=\"Байдаг ч сайжруулах шаардлагатай\",3,IF(C32=\"Байхгүй ч одоо боловсруулж байгаа\",4,IF(C32=\"Байдаггүй\",5,0)))))","v":0},{"$f":"IFERROR(VLOOKUP(D32*E32,'Үнэлгээ тайлбар'!$B$2:$C$15,2,FALSE),\"N/A\")","v":"N/A"}]
["16","Танай байгууллагад хээл хахууль авилга, залилантай тэмцэх бодлогын баримт бичиг, журам, заавар бий юу?   ",{"$f":"'Байгууллагын өөрийн үнэлгээ'!C33","v":0},{"$f":"'Байгууллагын өөрийн үнэлгээ'!D33","v":0},0,{"$f":"IFERROR(VLOOKUP(D33*E33,'Үнэлгээ тайлбар'!$B$2:$C$15,2,FALSE),\"N/A\")","v":"N/A"}]
["17","Танай байгууллага залилан мэхлэхийг илрүүлэх бодит цагийн хяналттай юу?",{"$f":"'Байгууллагын өөрийн үнэлгээ'!C34","v":0},{"$f":"'Байгууллагын өөрийн үнэлгээ'!D34","v":0},0,{"$f":"IFERROR(VLOOKUP(D34*E34,'Үнэлгээ тайлбар'!$B$2:$C$15,2,FALSE),\"N/A\")","v":"N/A"}]
["18","Танай байгууллагын үйл явц нь залилангийн хяналтыг дэмжих нэмэлт мэдээлэл цуглуулдаг системтэй байдаг уу, тухайлбал: IP хаяг, GPS байршил болон/эсвэл төхөөрөмжийн ID зэрэг багтдаг уу?",{"$f":"'Байгууллагын өөрийн үнэлгээ'!C35","v":0},{"$f":"'Байгууллагын өөрийн үнэлгээ'!D35","v":0},0,{"$f":"IFERROR(VLOOKUP(D35*E35,'Үнэлгээ тайлбар'!$B$2:$C$15,2,FALSE),\"N/A\")","v":"N/A"}]
["3. НЭР ХҮНДИЙН ЭРСДЭЛ",null,null,{"$f":"IF(SUM(D37:D79)<=2,\"N/A\",IF(SUM(D37:D79)<=5,1,IF(SUM(D37:D79)<=8,2,IF(SUM(D37:D79)<=10,3,IF(SUM(D37:D79)<=13,4,5)))))","v":"N/A"},{"$f":"IF(SUM(E37:E79)<=2,\"N/A\",IF(SUM(E37:E79)<=5,1,IF(SUM(E37:E79)<=8,2,IF(SUM(E37:E79)<=10,3,IF(SUM(E37:E79)<=13,4,5)))))","v":"N/A"},{"$f":"IFERROR(VLOOKUP(D36*E36,'Үнэлгээ тайлбар'!$B$2:$C$15,2,FALSE),\"N/A\")","v":"N/A"}]
["3.1","Хээл, хахууль ба авилга",null,{"$f":"IF(SUM(D38:D40)<=2,\"N/A\",IF(SUM(D38:D40)<=5,1,IF(SUM(D38:D40)<=8,2,IF(SUM(D38:D40)<=10,3,IF(SUM(D38:D40)<=13,4,IF(SUM(D38:D40)<=15,5,\"N/A))))\"))))))","v":"N/A"},{"$f":"IF(SUM(E38:E40)<=2,\"N/A\",IF(SUM(E38:E40)<=5,1,IF(SUM(E38:E40)<=8,2,IF(SUM(E38:E40)<=10,3,IF(SUM(E38:E40)<=13,4,IF(SUM(E38:E40)<=15,5,\"N/A))))\"))))))","v":"N/A"},{"$f":"IFERROR(VLOOKUP(D37*E37,'Үнэлгээ тайлбар'!$B$2:$C$15,2,FALSE),\"N/A\")","v":"N/A"}]
["19","Байгууллага нь хээл хахууль, авлигаас урьдчилан сэргийлэх, илрүүлэх, мэдээлэх зорилгоор холбогдох ХХА-ын дүрэм, шаардлагад нийцсэн бодлого, журамтай юу?",{"$f":"'Байгууллагын өөрийн үнэлгээ'!C38","v":0},{"$f":"'Байгууллагын өөрийн үнэлгээ'!D38","v":0},{"$f":"IF(C38=\"Байдаг. Хэрэгжилт хангалттай\",1,IF(C38=\"Байдаг ч хэрэгжилт хангалттай бус\",2,IF(C38=\"Байдаг ч сайжруулах шаардлагатай\",3,IF(C38=\"Байхгүй ч одоо боловсруулж байгаа\",4,IF(C38=\"Байдаггүй\",5,0)))))","v":0},{"$f":"IFERROR(VLOOKUP(D38*E38,'Үнэлгээ тайлбар'!$B$2:$C$15,2,FALSE),\"N/A\")","v":"N/A"}]
["20","Байгууллагын дотоод аудитын чиг үүрэг бүхий алба/нэгж эсвэл бусад бие даасан гуравдагч этгээд ХХА-ийн бодлого, журмыг давхар хянадаг уу?",{"$f":"'Байгууллагын өөрийн үнэлгээ'!C39","v":0},{"$f":"'Байгууллагын өөрийн үнэлгээ'!D39","v":0},{"$f":"IF(C39=\"Бүрэн\",1,IF(C39=\"Хангалттай\",2,IF(C39=\"Дунд\",3,IF(C39=\"Хангалтгүй\",4,IF(C39=\"Муу\",5,0)))))","v":0},{"$f":"IFERROR(VLOOKUP(D39*E39,'Үнэлгээ тайлбар'!$B$2:$C$15,2,FALSE),\"N/A\")","v":"N/A"}]
["21","Байгууллага ХХА-ын сургалтыг дараах хүмүүст ордог уу? 1) Удирдах зөвлөл, гүйцэтгэх зөвлөлийн хороод буюу удирдах түвшиний ажилтнууд. 2) Хамгаалалтын I, II, III шугамын ажилтнууд. 3) Гуравдагч байгууллагын ажилтнууд. 4) Гэрээт ажилтнууд.",{"$f":"'Байгууллагын өөрийн үнэлгээ'!C40","v":0},{"$f":"'Байгууллагын өөрийн үнэлгээ'!D40","v":0},{"$f":"IF(C40=\"Бүгдийг хамруулдаг\",1,IF(C40=\"Зөвхөн гурвыг нь хамруулдаг\",2,IF(C40=\"Зөвхөн хоёрыг нь хамруулдаг\",3,IF(C40=\"Зөвхөн нэгийг нь хамруулдаг\",4,IF(C40=\"Огт хамруулдаггүй\",5,0)))))","v":0},{"$f":"IFERROR(VLOOKUP(D40*E40,'Үнэлгээ тайлбар'!$B$2:$C$15,2,FALSE),\"N/A\")","v":"N/A"}]
["3.2","Харилцагчийг таньж мэдэх үйл ажиллагаа ",null,{"$f":"IF(SUM(D42:D44,D51,D57:D61)<=8,\"N/A\",IF(SUM(D42:D44,D51,D57:D61)<=16,1,IF(SUM(D42:D44,D51,D57:D61)<=23,2,IF(SUM(D42:D44,D51,D57:D61)<=31,3,IF(SUM(D42:D44,D51,D57:D61)<=C57,4,IF(SUM(D42:D44,D51,D57:D61)<=45,5,\"N/A\"))))))","v":"N/A"},{"$f":"IF(SUM(E42:E44,E51,E57:E61)<=8,\"N/A\",IF(SUM(E42:E44,E51,E57:E61)<=16,1,IF(SUM(E42:E44,E51,E57:E61)<=23,2,IF(SUM(E42:E44,E51,E57:E61)<=31,3,IF(SUM(E42:E44,E51,E57:E61)<=D57,4,IF(SUM(E42:E44,E51,E57:E61)<=45,5,\"N/A\"))))))","v":"N/A"},{"$f":"IFERROR(VLOOKUP(D41*E41,'Үнэлгээ тайлбар'!$B$2:$C$15,2,FALSE),\"N/A\")","v":"N/A"}]
["22","Танай байгууллага харилцагчийн хувийн мэдээллийг тулган хянаж, баталгаажуулдаг уу?",{"$f":"'Байгууллагын өөрийн үнэлгээ'!C42","v":0},{"$f":"'Байгууллагын өөрийн үнэлгээ'!D42","v":0},0,{"$f":"IFERROR(VLOOKUP(D42*E42,'Үнэлгээ тайлбар'!$B$2:$C$15,2,FALSE),\"N/A\")","v":"N/A"}]
["23","Харилцагчийг таних ажиллагааны талаар байгууллагын дүрэм, журамд тусгасан байдаг уу? (Жишээ: Ямар хугацаанд багтаан шалган шийдвэрлэх гэх мэт)",{"$f":"'Байгууллагын өөрийн үнэлгээ'!C43","v":0},{"$f":"'Байгууллагын өөрийн үнэлгээ'!D43","v":0},0,{"$f":"IFERROR(VLOOKUP(D43*E43,'Үнэлгээ тайлбар'!$B$2:$C$15,2,FALSE),\"N/A\")","v":"N/A"}]
["24","Харилцагчийг таних ажиллагаанд дараах мэдээллийг цуглуулан нягталж, мэдээллийг хадгалдаг эсэх:",null,{"$f":"IF(SUM(D45:D50)<=5,\"N/A\",IF(SUM(D45:D50)<=11,1,IF(SUM(D45:D50)<=16,2,IF(SUM(D45:D50)<=20,3,IF(SUM(D45:D50)<=25,4,5)))))","v":"N/A"},{"$f":"IF(SUM(E45:E50)<=5,\"N/A\",IF(SUM(E45:E50)<=11,1,IF(SUM(E45:E50)<=16,2,IF(SUM(E45:E50)<=20,3,IF(SUM(E45:E50)<=25,4,5)))))","v":"N/A"},{"$f":"IFERROR(VLOOKUP(D44*E44,'Үнэлгээ тайлбар'!$B$2:$C$15,2,FALSE),\"N/A\")","v":"N/A"}]
["24 a","Харилцагчийг тодорхойлох албан баримтууд",{"$f":"'Байгууллагын өөрийн үнэлгээ'!C45","v":0},{"$f":"'Байгууллагын өөрийн үнэлгээ'!D45","v":0},{"$f":"IF(C45=\"Хангалттай\",1,IF(C45=\"Сайн\",2,IF(C45=\"Дунд\",3,IF(C45=\"Хангалтгүй\",4,IF(C45=\"Муу\",5,0)))))","v":0},{"$f":"IFERROR(VLOOKUP(D45*E45,'Үнэлгээ тайлбар'!$B$2:$C$15,2,FALSE),\"N/A\")","v":"N/A"}]
["24 b","Бизнесийн үйл ажиллагаа, шинээр эрхлэх бизнесийн мэдээлэл",{"$f":"'Байгууллагын өөрийн үнэлгээ'!C46","v":0},{"$f":"'Байгууллагын өөрийн үнэлгээ'!D46","v":0},0,{"$f":"IFERROR(VLOOKUP(D46*E46,'Үнэлгээ тайлбар'!$B$2:$C$15,2,FALSE),\"N/A\")","v":"N/A"}]
["24 c","Бизнесийн, эсвэл хөдөлмөр эрхлэлтийн байдал",{"$f":"'Байгууллагын өөрийн үнэлгээ'!C47","v":0},{"$f":"'Байгууллагын өөрийн үнэлгээ'!D47","v":0},{"$f":"IF(C47=\"Хангалттай\",1,IF(C47=\"Сайн\",2,IF(C47=\"Дунд\",3,IF(C47=\"Хангалтгүй\",4,IF(C47=\"Муу\",5,0)))))","v":0},{"$f":"IFERROR(VLOOKUP(D47*E47,'Үнэлгээ тайлбар'!$B$2:$C$15,2,FALSE),\"N/A\")","v":"N/A"}]
["24 d","Өмчлөл",{"$f":"'Байгууллагын өөрийн үнэлгээ'!C48","v":0},{"$f":"'Байгууллагын өөрийн үнэлгээ'!D48","v":0},0,{"$f":"IFERROR(VLOOKUP(D48*E48,'Үнэлгээ тайлбар'!$B$2:$C$15,2,FALSE),\"N/A\")","v":"N/A"}]
["24 e","Санхүүгийн эх үүсвэр",{"$f":"'Байгууллагын өөрийн үнэлгээ'!C49","v":0},{"$f":"'Байгууллагын өөрийн үнэлгээ'!D49","v":0},0,{"$f":"IFERROR(VLOOKUP(D49*E49,'Үнэлгээ тайлбар'!$B$2:$C$15,2,FALSE),\"N/A\")","v":"N/A"}]
["24 f","Эд хөрөнгийн эх үүсвэр ",{"$f":"'Байгууллагын өөрийн үнэлгээ'!C50","v":0},{"$f":"'Байгууллагын өөрийн үнэлгээ'!D50","v":0},0,{"$f":"IFERROR(VLOOKUP(D50*E50,'Үнэлгээ тайлбар'!$B$2:$C$15,2,FALSE),\"N/A\")","v":"N/A"}]
["25","Дараах мэдээллүүдийг тодорхойлдог эсэх:",null,{"$f":"IF(SUM(D52:D56)<=4,\"N/A\",IF(SUM(D52:D56)<=9,1,IF(SUM(D52:D56)<=13,2,IF(SUM(D52:D56)<=17,3,IF(SUM(D52:D56)<=21,4,5)))))","v":"N/A"},{"$f":"IF(SUM(E52:E56)<=4,\"N/A\",IF(SUM(E52:E56)<=9,1,IF(SUM(E52:E56)<=13,2,IF(SUM(E52:E56)<=17,3,IF(SUM(E52:E56)<=21,4,5)))))","v":"N/A"},{"$f":"IFERROR(VLOOKUP(D51*E51,'Үнэлгээ тайлбар'!$B$2:$C$15,2,FALSE),\"N/A\")","v":"N/A"}]
["25 a","Эцсийн хүлээн авагч",{"$f":"'Байгууллагын өөрийн үнэлгээ'!C52","v":0},{"$f":"'Байгууллагын өөрийн үнэлгээ'!D52","v":0},{"$f":"IF(C52=\"Хангалттай\",1,IF(C52=\"Сайн\",2,IF(C52=\"Дунд\",3,IF(C52=\"Хангалтгүй\",4,IF(C52=\"Муу\",5,0)))))","v":0},{"$f":"IFERROR(VLOOKUP(D52*E52,'Үнэлгээ тайлбар'!$B$2:$C$15,2,FALSE),\"N/A\")","v":"N/A"}]
["25 b","Эцсийн хүлээн авагчийн мэдээллийг тулган баталгаажуулдаг эсэх",{"$f":"'Байгууллагын өөрийн үнэлгээ'!C53","v":0},{"$f":"'Байгууллагын өөрийн үнэлгээ'!D53","v":0},{"$f":"IF(C53=\"Хангалттай\",1,IF(C53=\"Сайн\",2,IF(C53=\"Дунд\",3,IF(C53=\"Хангалтгүй\",4,IF(C53=\"Муу\",5,0)))))","v":0},{"$f":"IFERROR(VLOOKUP(D53*E53,'Үнэлгээ тайлбар'!$B$2:$C$15,2,FALSE),\"N/A\")","v":"N/A"}]
["25 c","Баталгаат гарын үсгийг заавал баталгаажуулдаг эсэх",{"$f":"'Байгууллагын өөрийн үнэлгээ'!C54","v":0},{"$f":"'Байгууллагын өөрийн үнэлгээ'!D54","v":0},0,{"$f":"IFERROR(VLOOKUP(D54*E54,'Үнэлгээ тайлбар'!$B$2:$C$15,2,FALSE),\"N/A\")","v":"N/A"}]
["25 d","Байгууллагын удирдлагын бүтэц, үйл ажиллагаан дотоод зохион байгуулалт",{"$f":"'Байгууллагын өөрийн үнэлгээ'!C55","v":0},{"$f":"'Байгууллагын өөрийн үнэлгээ'!D55","v":0},0,{"$f":"IFERROR(VLOOKUP(D55*E55,'Үнэлгээ тайлбар'!$B$2:$C$15,2,FALSE),\"N/A\")","v":"N/A"}]
["25 e","Бусад холбогдох талууд",{"$f":"'Байгууллагын өөрийн үнэлгээ'!C56","v":0},{"$f":"'Байгууллагын өөрийн үнэлгээ'!D56","v":0},0,{"$f":"IFERROR(VLOOKUP(D56*E56,'Үнэлгээ тайлбар'!$B$2:$C$15,2,FALSE),\"N/A\")","v":"N/A"}]
["26","Харилцагчдаа эрсдэлээр нь ангилдаг эсэх",{"$f":"'Байгууллагын өөрийн үнэлгээ'!C57","v":0},{"$f":"'Байгууллагын өөрийн үнэлгээ'!D57","v":0},0,{"$f":"IFERROR(VLOOKUP(D57*E57,'Үнэлгээ тайлбар'!$B$2:$C$15,2,FALSE),\"N/A\")","v":"N/A"}]
["27","Харилцагч болон холбогдох талуудыг улс төрд нөлөө бүхий этгээд мөн эсэхийг шалгах эрсдэлд суурилсан аргатай эсэх",{"$f":"'Байгууллагын өөрийн үнэлгээ'!C58","v":0},{"$f":"'Байгууллагын өөрийн үнэлгээ'!D58","v":0},{"$f":"IF(C58=\"Байдаг. Хэрэгжилт хангалттай\",1,IF(C58=\"Байдаг ч хэрэгжилт хангалттай бус\",2,IF(C58=\"Байдаг ч сайжруулах шаардлагатай\",3,IF(C58=\"Байхгүй ч одоо боловсруулж байгаа\",4,IF(C58=\"Байдаггүй\",5,0)))))","v":0},{"$f":"IFERROR(VLOOKUP(D58*E58,'Үнэлгээ тайлбар'!$B$2:$C$15,2,FALSE),\"N/A\")","v":"N/A"}]
["28","Улс төрд нөлөө бүхий этгээдийг тодорхойлох бодлогын баримт бичиг, журам, заавартай эсэх",{"$f":"'Байгууллагын өөрийн үнэлгээ'!C59","v":0},{"$f":"'Байгууллагын өөрийн үнэлгээ'!D59","v":0},{"$f":"IF(C59=\"Байдаг. Хэрэгжилт хангалттай\",1,IF(C59=\"Байдаг ч хэрэгжилт хангалттай бус\",2,IF(C59=\"Байдаг ч сайжруулах шаардлагатай\",3,IF(C59=\"Байхгүй ч одоо боловсруулж байгаа\",4,IF(C59=\"Байдаггүй\",5,0)))))","v":0},{"$f":"IFERROR(VLOOKUP(D59*E59,'Үнэлгээ тайлбар'!$B$2:$C$15,2,FALSE),\"N/A\")","v":"N/A"}]
["29","Харилцагчийг таньж мэдэх үйл ажиллагаа нь эрсдэлийн зэрэглэлд үндэслэн тодорхой давтамжтайгаар шинэчлэгддэг эсэх",{"$f":"'Байгууллагын өөрийн үнэлгээ'!C60","v":0},{"$f":"'Байгууллагын өөрийн үнэлгээ'!D60","v":0},{"$f":"IF(C60=\"Тогтмол\",1,IF(C60=\"Ихэнхдээ\",2,IF(C60=\"Үе үе\",3,IF(C60=\"Хааяа\",4,IF(C60=\"Огт үгүй\",5,0)))))","v":0},{"$f":"IFERROR(VLOOKUP(D60*E60,'Үнэлгээ тайлбар'!$B$2:$C$15,2,FALSE),\"N/A\")","v":"N/A"}]
["30","Доорх жагсаалтаас аль ангиллын салбар, эсвэл харилцагчид нэмэлт мэдээлэл шаардан, таньж мэдэх үйл ажиллагааг явуулдаг вэ? Тэдгээр салбар, эсвэл харилцагчид санхүүгийн гэмт хэргээс урьдчилан сэргийлэх журмаар үйлчилгээ үзүүлэхээс татгалздаг эсэх:",null,{"$f":"IF(SUM(D62:D78)<=16,\"N/A\",IF(SUM(D62:D78)<=31,1,IF(SUM(D62:D78)<=44,2,IF(SUM(D62:D78)<=58,3,IF(SUM(D62:D78)<=71,4,5)))))","v":"N/A"},{"$f":"IF(SUM(E62:E78)<=16,\"N/A\",IF(SUM(E62:E78)<=31,1,IF(SUM(E62:E78)<=44,2,IF(SUM(E62:E78)<=58,3,IF(SUM(E62:E78)<=71,4,5)))))","v":"N/A"},{"$f":"IFERROR(VLOOKUP(D61*E61,'Үнэлгээ тайлбар'!$B$2:$C$15,2,FALSE),\"N/A\")","v":"N/A"}]
["30 a","Зэвсэгт хүчин",{"$f":"'Байгууллагын өөрийн үнэлгээ'!C62","v":0},{"$f":"'Байгууллагын өөрийн үнэлгээ'!D62","v":0},{"$f":"IF(C62=\"Тогтмол\",1,IF(C62=\"Ихэнхдээ\",2,IF(C62=\"Үе үе\",3,IF(C62=\"Хааяа\",4,IF(C62=\"Огт үгүй\",5,0)))))","v":0},{"$f":"IFERROR(VLOOKUP(D62*E62,'Үнэлгээ тайлбар'!$B$2:$C$15,2,FALSE),\"N/A\")","v":"N/A"}]
["30 b","Элчийн сайдын яам/Консулын газар",{"$f":"'Байгууллагын өөрийн үнэлгээ'!C63","v":0},{"$f":"'Байгууллагын өөрийн үнэлгээ'!D63","v":0},{"$f":"IF(C63=\"Тогтмол\",1,IF(C63=\"Ихэнхдээ\",2,IF(C63=\"Үе үе\",3,IF(C63=\"Хааяа\",4,IF(C63=\"Огт үгүй\",5,0)))))","v":0},{"$f":"IFERROR(VLOOKUP(D63*E63,'Үнэлгээ тайлбар'!$B$2:$C$15,2,FALSE),\"N/A\")","v":"N/A"}]
["30 c","Уул уурхай",{"$f":"'Байгууллагын өөрийн үнэлгээ'!C64","v":0},{"$f":"'Байгууллагын өөрийн үнэлгээ'!D64","v":0},0,{"$f":"IFERROR(VLOOKUP(D64*E64,'Үнэлгээ тайлбар'!$B$2:$C$15,2,FALSE),\"N/A\")","v":"N/A"}]
["30 d","Бөөний худалдаа эрхлэгч",{"$f":"'Байгууллагын өөрийн үнэлгээ'!C65","v":0},{"$f":"'Байгууллагын өөрийн үнэлгээ'!D65","v":0},0,{"$f":"IFERROR(VLOOKUP(D65*E65,'Үнэлгээ тайлбар'!$B$2:$C$15,2,FALSE),\"N/A\")","v":"N/A"}]
["30 e","Худалдааны байгууллага",{"$f":"'Байгууллагын өөрийн үнэлгээ'!C66","v":0},{"$f":"'Байгууллагын өөрийн үнэлгээ'!D66","v":0},0,{"$f":"IFERROR(VLOOKUP(D66*E66,'Үнэлгээ тайлбар'!$B$2:$C$15,2,FALSE),\"N/A\")","v":"N/A"}]
["30 f","Мөнгөн гуйвуулга болон валютын арилжаа эрхлэгч",{"$f":"'Байгууллагын өөрийн үнэлгээ'!C67","v":0},{"$f":"'Байгууллагын өөрийн үнэлгээ'!D67","v":0},0,{"$f":"IFERROR(VLOOKUP(D67*E67,'Үнэлгээ тайлбар'!$B$2:$C$15,2,FALSE),\"N/A\")","v":"N/A"}]
["30 g","Харилцах дансгүй харилцагч",{"$f":"'Байгууллагын өөрийн үнэлгээ'!C68","v":0},{"$f":"'Байгууллагын өөрийн үнэлгээ'!D68","v":0},0,{"$f":"IFERROR(VLOOKUP(D68*E68,'Үнэлгээ тайлбар'!$B$2:$C$15,2,FALSE),\"N/A\")","v":"N/A"}]
[" 30 h","Төрийн бус байгууллага",{"$f":"'Байгууллагын өөрийн үнэлгээ'!C69","v":0},{"$f":"'Байгууллагын өөрийн үнэлгээ'!D69","v":0},0,{"$f":"IFERROR(VLOOKUP(D69*E69,'Үнэлгээ тайлбар'!$B$2:$C$15,2,FALSE),\"N/A\")","v":"N/A"}]
[" 30 i","Харъалалгүй иргэн, эсхүл байнгын бус оршин суугч",{"$f":"'Байгууллагын өөрийн үнэлгээ'!C70","v":0},{"$f":"'Байгууллагын өөрийн үнэлгээ'!D70","v":0},0,{"$f":"IFERROR(VLOOKUP(D70*E70,'Үнэлгээ тайлбар'!$B$2:$C$15,2,FALSE),\"N/A\")","v":"N/A"}]
["30 g","Цөмийн эрчим хүчний байгууллага",{"$f":"'Байгууллагын өөрийн үнэлгээ'!C71","v":0},{"$f":"'Байгууллагын өөрийн үнэлгээ'!D71","v":0},0,{"$f":"IFERROR(VLOOKUP(D71*E71,'Үнэлгээ тайлбар'!$B$2:$C$15,2,FALSE),\"N/A\")","v":"N/A"}]
["30 k","Мөнгөн төлбөр тооцооны үйлчилгээ үзүүлэгч",{"$f":"'Байгууллагын өөрийн үнэлгээ'!C72","v":0},{"$f":"'Байгууллагын өөрийн үнэлгээ'!D72","v":0},0,{"$f":"IFERROR(VLOOKUP(D72*E72,'Үнэлгээ тайлбар'!$B$2:$C$15,2,FALSE),\"N/A\")","v":"N/A"}]
[" 30 l","Улс төрд нөлөө бүхий этгээд",{"$f":"'Байгууллагын өөрийн үнэлгээ'!C73","v":0},{"$f":"'Байгууллагын өөрийн үнэлгээ'!D73","v":0},0,{"$f":"IFERROR(VLOOKUP(D73*E73,'Үнэлгээ тайлбар'!$B$2:$C$15,2,FALSE),\"N/A\")","v":"N/A"}]
["30 m","Улс төрд нөлөө бүхий этгээдтэй хамаарал бүхий хүн",{"$f":"'Байгууллагын өөрийн үнэлгээ'!C74","v":0},{"$f":"'Байгууллагын өөрийн үнэлгээ'!D74","v":0},0,{"$f":"IFERROR(VLOOKUP(D74*E74,'Үнэлгээ тайлбар'!$B$2:$C$15,2,FALSE),\"N/A\")","v":"N/A"}]
["30 n","Халхавч банк",{"$f":"'Байгууллагын өөрийн үнэлгээ'!C75","v":0},{"$f":"'Байгууллагын өөрийн үнэлгээ'!D75","v":0},0,{"$f":"IFERROR(VLOOKUP(D75*E75,'Үнэлгээ тайлбар'!$B$2:$C$15,2,FALSE),\"N/A\")","v":"N/A"}]
["30 o","Аялал жуулчлалын компани",{"$f":"'Байгууллагын өөрийн үнэлгээ'!C76","v":0},{"$f":"'Байгууллагын өөрийн үнэлгээ'!D76","v":0},0,{"$f":"IFERROR(VLOOKUP(D76*E76,'Үнэлгээ тайлбар'!$B$2:$C$15,2,FALSE),\"N/A\")","v":"N/A"}]
["30 p","Хуучин автомашины худалдаа",{"$f":"'Байгууллагын өөрийн үнэлгээ'!C77","v":0},{"$f":"'Байгууллагын өөрийн үнэлгээ'!D77","v":0},0,{"$f":"IFERROR(VLOOKUP(D77*E77,'Үнэлгээ тайлбар'!$B$2:$C$15,2,FALSE),\"N/A\")","v":"N/A"}]
["30 q","Хандив, тусламжийн байгууллага",{"$f":"'Байгууллагын өөрийн үнэлгээ'!C78","v":0},{"$f":"'Байгууллагын өөрийн үнэлгээ'!D78","v":0},0,{"$f":"IFERROR(VLOOKUP(D78*E78,'Үнэлгээ тайлбар'!$B$2:$C$15,2,FALSE),\"N/A\")","v":"N/A"}]
["31","Хэрэв үйлчилгээ үзүүлэхээс татгалзсан бол хязгаарлалтын талаар дэлгэрэнгүй мэдээлэл өгнө үү."]
["4. МӨНГӨ УГААХ, ТЕРРОРИЗМЫГ САНХҮҮЖҮҮЛЭХ ЭРСДЭЛ",null,null,{"$f":"IF(SUM(D81,D96,D115)<=2,\"N/A\",IF(SUM(D81,D96,D115)<=5,1,IF(SUM(D81,D96,D115)<=8,2,IF(SUM(D81,D96,D115)<=10,3,IF(SUM(D81,D96,D115)<=13,4,5)))))","v":"N/A"},{"$f":"IF(SUM(E81,E96,E115)<=2,\"N/A\",IF(SUM(E81,E96,E115)<=5,1,IF(SUM(E81,E96,E115)<=8,2,IF(SUM(E81,E96,E115)<=10,3,IF(SUM(E81,E96,E115)<=13,4,5)))))","v":"N/A"},{"$f":"IFERROR(VLOOKUP(D80*E80,'Үнэлгээ тайлбар'!$B$2:$C$15,2,FALSE),\"N/A\")","v":"N/A"}]
["4.1 ","МУТС ба хориг арга хэмжээ, бодлогын баримт бичиг, дүрэм, журам",null,{"$f":"IF(SUM(D82,D86,D92:D95)<=5,\"N/A\",IF(SUM(D82,D86,D92:D95)<=11,1,IF(SUM(D82,D86,D92:D95)<=16,2,IF(SUM(D82,D86,D92:D95)<=20,3,IF(SUM(D82,D86,D92:D95)<=25,4,5)))))","v":"N/A"},{"$f":"IF(SUM(E82,E86,E92:E95)<=5,\"N/A\",IF(SUM(E82,E86,E92:E95)<=11,1,IF(SUM(E82,E86,E92:E95)<=16,2,IF(SUM(E82,E86,E92:E95)<=20,3,IF(SUM(E82,E86,E92:E95)<=25,4,5)))))","v":"N/A"},{"$f":"IFERROR(VLOOKUP(D81*E81,'Үнэлгээ тайлбар'!$B$2:$C$15,2,FALSE),\"N/A\")","v":"N/A"}]
["32","Танай байгууллага урьдчилан сэргийлэх, илрүүлэх, тайлагнах зорилгоор МУТС хориг арга хэмжээний зохицуулалт, шаардлагад нийцсэн бодлогын баримт бичиг, журам, зааврыг боловсруулсан эсэх:",null,{"$f":"IF(SUM(D83:D85)<=2,\"N/A\",IF(SUM(D83:D85)<=5,1,IF(SUM(D83:D85)<=8,2,IF(SUM(D83:D85)<=10,3,IF(SUM(D83:D85)<=13,4,5)))))","v":"N/A"},{"$f":"IF(SUM(E83:E85)<=2,\"N/A\",IF(SUM(E83:E85)<=5,1,IF(SUM(E83:E85)<=8,2,IF(SUM(E83:E85)<=10,3,IF(SUM(E83:E85)<=13,4,5)))))","v":"N/A"},{"$f":"IFERROR(VLOOKUP(D82*E82,'Үнэлгээ тайлбар'!$B$2:$C$15,2,FALSE),\"N/A\")","v":"N/A"}]
["32 a","Мөнгө угаалтын эсрэг",{"$f":"'Байгууллагын өөрийн үнэлгээ'!C83","v":0},{"$f":"'Байгууллагын өөрийн үнэлгээ'!D83","v":0},{"$f":"IF(C83=\"Байдаг. Хэрэгжилт хангалттай\",1,IF(C83=\"Байдаг ч хэрэгжилт хангалттай бус\",2,IF(C83=\"Байдаг ч сайжруулах шаардлагатай\",3,IF(C83=\"Байхгүй ч одоо боловсруулж байгаа\",4,IF(C83=\"Байдаггүй\",5,0)))))","v":0},{"$f":"IFERROR(VLOOKUP(D83*E83,'Үнэлгээ тайлбар'!$B$2:$C$15,2,FALSE),\"N/A\")","v":"N/A"}]
["32 b","Терроризмыг санхүүжүүлэхтэй тэмцэх",{"$f":"'Байгууллагын өөрийн үнэлгээ'!C84","v":0},{"$f":"'Байгууллагын өөрийн үнэлгээ'!D84","v":0},0,{"$f":"IFERROR(VLOOKUP(D84*E84,'Үнэлгээ тайлбар'!$B$2:$C$15,2,FALSE),\"N/A\")","v":"N/A"}]
["32 c","Хориг арга хэмжээний зөрчлийн эсрэг",{"$f":"'Байгууллагын өөрийн үнэлгээ'!C85","v":0},{"$f":"'Байгууллагын өөрийн үнэлгээ'!D85","v":0},0,{"$f":"IFERROR(VLOOKUP(D85*E85,'Үнэлгээ тайлбар'!$B$2:$C$15,2,FALSE),\"N/A\")","v":"N/A"}]
["33","Танай байгууллага дараах үйл ажиллагааг зохицуулсан бодлогын баримт бичиг, журам, заавартай эсэх?",null,{"$f":"IF(SUM(D87:D91)<=4,\"N/A\",IF(SUM(D87:D91)<=9,1,IF(SUM(D87:D91)<=13,2,IF(SUM(D87:D91)<=17,3,IF(SUM(D87:D91)<=21,4,5)))))","v":"N/A"},{"$f":"IF(SUM(E87:E91)<=4,\"N/A\",IF(SUM(E87:E91)<=9,1,IF(SUM(E87:E91)<=13,2,IF(SUM(E87:E91)<=17,3,IF(SUM(E87:E91)<=21,4,5)))))","v":"N/A"},{"$f":"IFERROR(VLOOKUP(D86*E86,'Үнэлгээ тайлбар'!$B$2:$C$15,2,FALSE),\"N/A\")","v":"N/A"}]
["33 a","Хуурамч, зохиомол данс нээх, хөтлөхийг хориглох",{"$f":"'Байгууллагын өөрийн үнэлгээ'!C87","v":0},{"$f":"'Байгууллагын өөрийн үнэлгээ'!D87","v":0},{"$f":"IF(C87=\"Байдаг. Хэрэгжилт хангалттай\",1,IF(C87=\"Байдаг ч хэрэгжилт хангалттай бус\",2,IF(C87=\"Байдаг ч сайжруулах шаардлагатай\",3,IF(C87=\"Байхгүй ч одоо боловсруулж байгаа\",4,IF(C87=\"Байдаггүй\",5,0)))))","v":0},{"$f":"IFERROR(VLOOKUP(D87*E87,'Үнэлгээ тайлбар'!$B$2:$C$15,2,FALSE),\"N/A\")","v":"N/A"}]
["33 b","Тусгай зөвшөөрөлгүй санхүүгийн байгууллагад данс нээлгэх, хөтлөхийг хориглох",{"$f":"'Байгууллагын өөрийн үнэлгээ'!C88","v":0},{"$f":"'Байгууллагын өөрийн үнэлгээ'!D88","v":0},0,{"$f":"IFERROR(VLOOKUP(D88*E88,'Үнэлгээ тайлбар'!$B$2:$C$15,2,FALSE),\"N/A\")","v":"N/A"}]
["33 c","Хууль тогтоомжийг зөрчиж тусгай зөвшөөрөлгүйгээр үйл ажиллагаа эрхэлж буй хуулийн этгээдэд үйлчилгээ үзүүлж буй хуулийн этгээдэд данс нээх, хөтлөхийг хориглох",{"$f":"'Байгууллагын өөрийн үнэлгээ'!C89","v":0},{"$f":"'Байгууллагын өөрийн үнэлгээ'!D89","v":0},0,{"$f":"IFERROR(VLOOKUP(D89*E89,'Үнэлгээ тайлбар'!$B$2:$C$15,2,FALSE),\"N/A\")","v":"N/A"}]
["33 d","Хууль тогтоомжийг зөрчиж тусгай зөвшөөрөлгүйгээр үйл ажиллагаа эрхэлж буй хуулийн этгээдэд данс нээх, хөтлөхийг хориглох",{"$f":"'Байгууллагын өөрийн үнэлгээ'!C90","v":0},{"$f":"'Байгууллагын өөрийн үнэлгээ'!D90","v":0},0,{"$f":"IFERROR(VLOOKUP(D90*E90,'Үнэлгээ тайлбар'!$B$2:$C$15,2,FALSE),\"N/A\")","v":"N/A"}]
["33 e","Дотоод болон гадаадын төрийн бус байгуулага /ТББ/-ууд, тэдгээрийн эрх бүхий албан тушаалтнуудын нэгдмэл сонирхолтой этгээдтэй харилцах эрсдэлийг үнэлэх",{"$f":"'Байгууллагын өөрийн үнэлгээ'!C91","v":0},{"$f":"'Байгууллагын өөрийн үнэлгээ'!D91","v":0},0,{"$f":"IFERROR(VLOOKUP(D91*E91,'Үнэлгээ тайлбар'!$B$2:$C$15,2,FALSE),\"N/A\")","v":"N/A"}]
["34","Ажилтнуудын тодорхойлсон санхүүгийн гэмт хэрэгтэй холбогдох эрсдэлүүд/сэжигтэй байж болзошгүй үйл ажиллагааг үргэлжлүүлэн судалж шалгадаг эсэх?",{"$f":"'Байгууллагын өөрийн үнэлгээ'!C92","v":0},{"$f":"'Байгууллагын өөрийн үнэлгээ'!D92","v":0},{"$f":"IF(C92=\"Тогтмол\",1,IF(C92=\"Ихэнхдээ\",2,IF(C92=\"Үе үе\",3,IF(C92=\"Хааяа\",4,IF(C92=\"Огт үгүй\",5,0)))))","v":0},{"$f":"IFERROR(VLOOKUP(D92*E92,'Үнэлгээ тайлбар'!$B$2:$C$15,2,FALSE),\"N/A\")","v":"N/A"}]
["35","Хориг арга хэмжээ, улс төрийн хамаарал бүхий этгээд сэжигтэй шалгах мэдээллийн хэрэгсэл/мэдээг шалгаж нягталдаг эсэх?",{"$f":"'Байгууллагын өөрийн үнэлгээ'!C93","v":0},{"$f":"'Байгууллагын өөрийн үнэлгээ'!D93","v":0},{"$f":"IF(C93=\"Тогтмол\",1,IF(C93=\"Ихэнхдээ\",2,IF(C93=\"Үе үе\",3,IF(C93=\"Хааяа\",4,IF(C93=\"Огт үгүй\",5,0)))))","v":0},{"$f":"IFERROR(VLOOKUP(D93*E93,'Үнэлгээ тайлбар'!$B$2:$C$15,2,FALSE),\"N/A\")","v":"N/A"}]
["36","Байгууллагын эрсдэл даах чадварын журам, заавар эсвэл бизнесийн орчинд эрсдэлийн хил хязгаарыг тодорхойлсон баримт бичигтэй эсэх?",{"$f":"'Байгууллагын өөрийн үнэлгээ'!C94","v":0},{"$f":"'Байгууллагын өөрийн үнэлгээ'!D94","v":0},0,{"$f":"IFERROR(VLOOKUP(D94*E94,'Үнэлгээ тайлбар'!$B$2:$C$15,2,FALSE),\"N/A\")","v":"N/A"}]
["37","Байгууллага нь холбогдох хууль тогтоомжид нийцсэн зөрчилтэй холбоотой хэрэг бүртгэл хөтлөх, мэдээллийг хадгалах журамтай эсэх?",{"$f":"'Байгууллагын өөрийн үнэлгээ'!C95","v":0},{"$f":"'Байгууллагын өөрийн үнэлгээ'!D95","v":0},0,{"$f":"IFERROR(VLOOKUP(D95*E95,'Үнэлгээ тайлбар'!$B$2:$C$15,2,FALSE),\"N/A\")","v":"N/A"}]
["4.2","МУТС ба хориг арга хэмжээний хөтөлбөр",null,{"$f":"IF(SUM(D97,D112:D113)<=2,\"N/A\",IF(SUM(D97,D112:D113)<=5,1,IF(SUM(D97,D112:D113)<=8,2,IF(SUM(D97,D112:D113)<=10,3,IF(SUM(D97,D112:D113)<=13,4,5)))))","v":"N/A"},{"$f":"IF(SUM(E97,E112:E113)<=2,\"N/A\",IF(SUM(E97,E112:E113)<=5,1,IF(SUM(E97,E112:E113)<=8,2,IF(SUM(E97,E112:E113)<=10,3,IF(SUM(E97,E112:E113)<=13,4,5)))))","v":"N/A"},{"$f":"IFERROR(VLOOKUP(D96*E96,'Үнэлгээ тайлбар'!$B$2:$C$15,2,FALSE),\"N/A\")","v":"N/A"}]
["38","Танай байгууллага дараах бүрэлдэхүүн хэсгүүдийг (38a-38n) Комплайнсын хөтөлбөртөө тусгадаг уу? Хэрэгжилтээ үнэлнэ үү.",null,{"$f":"IF(SUM(D98:D111)<=13,\"N/A\",IF(SUM(D98:D111)<=25,1,IF(SUM(D98:D111)<=36,2,IF(SUM(D98:D111)<=48,3,IF(SUM(D98:D111)<=59,4,5)))))","v":"N/A"},{"$f":"IF(SUM(E98:E111)<=13,\"N/A\",IF(SUM(E98:E111)<=25,1,IF(SUM(E98:E111)<=36,2,IF(SUM(E98:E111)<=48,3,IF(SUM(E98:E111)<=59,4,5)))))","v":"N/A"},{"$f":"IFERROR(VLOOKUP(D97*E97,'Үнэлгээ тайлбар'!$B$2:$C$15,2,FALSE),\"N/A\")","v":"N/A"}]
["38 a","Мэргэжлийн ур чадвар, туршлага бүхий ажилтнуудыг тогтвортой ажиллуулах",{"$f":"'Байгууллагын өөрийн үнэлгээ'!C98","v":0},{"$f":"'Байгууллагын өөрийн үнэлгээ'!D98","v":0},{"$f":"IF(C98=\"Тусгадаг. Хэрэгжилт хангалттай\",1,IF(C98=\"Тусгасан байдаг ч хэрэгжилт хангалттай бус\",2,IF(C98=\"Тусгасан ч сайжруулах шаардлагатай\",3,IF(C98=\"Тусгаагүй ч одоо боловсруулж байгаа\",4,IF(C98=\"Огт тусгаагүй\",5,0)))))","v":0},{"$f":"IFERROR(VLOOKUP(D98*E98,'Үнэлгээ тайлбар'!$B$2:$C$15,2,FALSE),\"N/A\")","v":"N/A"}]
["38 b","Мэдээллийн сэжигтэй болон зөрүүтэй байдалд шинжилгээ хийх",{"$f":"'Байгууллагын өөрийн үнэлгээ'!C99","v":0},{"$f":"'Байгууллагын өөрийн үнэлгээ'!D99","v":0},{"$f":"IF(C99=\"Тусгадаг. Хэрэгжилт хангалттай\",1,IF(C99=\"Тусгасан байдаг ч хэрэгжилт хангалттай бус\",2,IF(C99=\"Тусгасан ч сайжруулах шаардлагатай\",3,IF(C99=\"Тусгаагүй ч одоо боловсруулж байгаа\",4,IF(C99=\"Огт тусгаагүй\",5,0)))))","v":0},{"$f":"IFERROR(VLOOKUP(D99*E99,'Үнэлгээ тайлбар'!$B$2:$C$15,2,FALSE),\"N/A\")","v":"N/A"}]
["38 c","Эцсийн өмчлөгчийг тогтоох",{"$f":"'Байгууллагын өөрийн үнэлгээ'!C100","v":0},{"$f":"'Байгууллагын өөрийн үнэлгээ'!D100","v":0},0,{"$f":"IFERROR(VLOOKUP(D100*E100,'Үнэлгээ тайлбар'!$B$2:$C$15,2,FALSE),\"N/A\")","v":"N/A"}]
["38 d","Бэлэн мөнгөний тайлагнал",{"$f":"'Байгууллагын өөрийн үнэлгээ'!C101","v":0},{"$f":"'Байгууллагын өөрийн үнэлгээ'!D101","v":0},0,{"$f":"IFERROR(VLOOKUP(D101*E101,'Үнэлгээ тайлбар'!$B$2:$C$15,2,FALSE),\"N/A\")","v":"N/A"}]
["38 e","Харилцагчийг таньж мэдэх үйл ажиллагаа",{"$f":"'Байгууллагын өөрийн үнэлгээ'!C102","v":0},{"$f":"'Байгууллагын өөрийн үнэлгээ'!D102","v":0},0,{"$f":"IFERROR(VLOOKUP(D102*E102,'Үнэлгээ тайлбар'!$B$2:$C$15,2,FALSE),\"N/A\")","v":"N/A"}]
["38 f","Тусгай шалгалт явуулах үйл ажиллагааны талаар",{"$f":"'Байгууллагын өөрийн үнэлгээ'!C103","v":0},{"$f":"'Байгууллагын өөрийн үнэлгээ'!D103","v":0},0,{"$f":"IFERROR(VLOOKUP(D103*E103,'Үнэлгээ тайлбар'!$B$2:$C$15,2,FALSE),\"N/A\")","v":"N/A"}]
["38 g","Хэсэгчилсэн хугацааны эргэн хяналт хийх ",{"$f":"'Байгууллагын өөрийн үнэлгээ'!C104","v":0},{"$f":"'Байгууллагын өөрийн үнэлгээ'!D104","v":0},0,{"$f":"IFERROR(VLOOKUP(D104*E104,'Үнэлгээ тайлбар'!$B$2:$C$15,2,FALSE),\"N/A\")","v":"N/A"}]
["38 h","Бусад бодлого, дүрэм журамтай уялдаатай байх",{"$f":"'Байгууллагын өөрийн үнэлгээ'!C105","v":0},{"$f":"'Байгууллагын өөрийн үнэлгээ'!D105","v":0},0,{"$f":"IFERROR(VLOOKUP(D105*E105,'Үнэлгээ тайлбар'!$B$2:$C$15,2,FALSE),\"N/A\")","v":"N/A"}]
["38 i","Улс төрийн нөлөө бүхий этгээдийг шалгаж, шинжилгээ хийх",{"$f":"'Байгууллагын өөрийн үнэлгээ'!C106","v":0},{"$f":"'Байгууллагын өөрийн үнэлгээ'!D106","v":0},0,{"$f":"IFERROR(VLOOKUP(D106*E106,'Үнэлгээ тайлбар'!$B$2:$C$15,2,FALSE),\"N/A\")","v":"N/A"}]
["38 j","Эрсдэлийн үнэлгээ хийх ",{"$f":"'Байгууллагын өөрийн үнэлгээ'!C107","v":0},{"$f":"'Байгууллагын өөрийн үнэлгээ'!D107","v":0},0,{"$f":"IFERROR(VLOOKUP(D107*E107,'Үнэлгээ тайлбар'!$B$2:$C$15,2,FALSE),\"N/A\")","v":"N/A"}]
["38 k","Хориг арга хэмжээг жагсаалттай тулган шалгах",{"$f":"'Байгууллагын өөрийн үнэлгээ'!C108","v":0},{"$f":"'Байгууллагын өөрийн үнэлгээ'!D108","v":0},0,{"$f":"IFERROR(VLOOKUP(D108*E108,'Үнэлгээ тайлбар'!$B$2:$C$15,2,FALSE),\"N/A\")","v":"N/A"}]
["38 l","Сэжигтэй үйл ажиллагааг тайлагнах талаар",{"$f":"'Байгууллагын өөрийн үнэлгээ'!C109","v":0},{"$f":"'Байгууллагын өөрийн үнэлгээ'!D109","v":0},0,{"$f":"IFERROR(VLOOKUP(D109*E109,'Үнэлгээ тайлбар'!$B$2:$C$15,2,FALSE),\"N/A\")","v":"N/A"}]
["38 m","Комплайнсын талаарх мэдлэг, боловсрол олгох сургалт хийх",{"$f":"'Байгууллагын өөрийн үнэлгээ'!C110","v":0},{"$f":"'Байгууллагын өөрийн үнэлгээ'!D110","v":0},0,{"$f":"IFERROR(VLOOKUP(D110*E110,'Үнэлгээ тайлбар'!$B$2:$C$15,2,FALSE),\"N/A\")","v":"N/A"}]
["38 n","Гүйлгээний хяналт тавих",{"$f":"'Байгууллагын өөрийн үнэлгээ'!C111","v":0},{"$f":"'Байгууллагын өөрийн үнэлгээ'!D111","v":0},0,{"$f":"IFERROR(VLOOKUP(D111*E111,'Үнэлгээ тайлбар'!$B$2:$C$15,2,FALSE),\"N/A\")","v":"N/A"}]
["39","МУТС хориг арга хэмжээний бодлогын хэрэгжилтэд ТУЗ, эсхүл гүйцэтгэх удирдлага ямар давтамжтайгаар хяналт тавьж, сайжруулалт хийдэг вэ?",{"$f":"'Байгууллагын өөрийн үнэлгээ'!C112","v":0},{"$f":"'Байгууллагын өөрийн үнэлгээ'!D112","v":0},{"$f":"IF(C112=\"Шаардлагатай тохиолдолд\",1,IF(C112=\"Жилд 1 удаа\",2,IF(C112=\"2 жилд 1 удаа\",3,IF(C112=\"3 жилд 1 удаа\",4,IF(C112=\"Сүүлийн 4 ба түүнээс дээш жилд сайжруулалт хийгдээгүй\",5,0)))))","v":0},{"$f":"IFERROR(VLOOKUP(D112*E112,'Үнэлгээ тайлбар'!$B$2:$C$15,2,FALSE),\"N/A\")","v":"N/A"}]
["40","Танай байгууллага МУТС ба хориг арга хэмжээний хөтөлбөрийг хэрэгжүүлэх зорилгоор мэргэжлийн байгууллагаас зөвлөгөө авдаг уу?",{"$f":"'Байгууллагын өөрийн үнэлгээ'!C113","v":0},{"$f":"'Байгууллагын өөрийн үнэлгээ'!D113","v":0},{"$f":"IF(C113=\"Шаардлагатай тохиолдолд\",1,IF(C113=\"Жилд 1 удаа\",2,IF(C113=\"2 жилд 1 удаа\",3,IF(C113=\"3 жилд 1 удаа\",4,IF(C113=\"Сүүлийн 4 ба түүнээс дээш жилд сайжруулалт хийгдээгүй\",5,0)))))","v":0},{"$f":"IFERROR(VLOOKUP(D113*E113,'Үнэлгээ тайлбар'!$B$2:$C$15,2,FALSE),\"N/A\")","v":"N/A"}]
["41","Зөвлөгөө авсан тохиолдолд энэ талаар дэлгэрэнгүй мэдээлэл өгнө үү."]
["4.3 ","Хориг арга хэмжээ",null,{"$f":"IF(SUM(D116:D118)<=2,\"N/A\",IF(SUM(D116:D118)<=5,1,IF(SUM(D116:D118)<=8,2,IF(SUM(D116:D118)<=10,3,IF(SUM(D116:D118)<=13,4,5)))))","v":"N/A"},{"$f":"IF(SUM(E116:E118)<=2,\"N/A\",IF(SUM(E116:E118)<=5,1,IF(SUM(E116:E118)<=8,2,IF(SUM(E116:E118)<=10,3,IF(SUM(E116:E118)<=13,4,5)))))","v":"N/A"},{"$f":"IFERROR(VLOOKUP(D115*E115,'Үнэлгээ тайлбар'!$B$2:$C$15,2,FALSE),\"N/A\")","v":"N/A"}]
["42","Танай байгууллагад хориг арга хэмжээний бодлогын баримт бичиг, журам, заавар байдаг уу? хэрэгжилтийг үнэлнэ үү.",{"$f":"'Байгууллагын өөрийн үнэлгээ'!C116","v":0},{"$f":"'Байгууллагын өөрийн үнэлгээ'!D116","v":0},{"$f":"IF(C116=\"Байдаг. Хэрэгжилт хангалттай\",1,IF(C116=\"Байдаг ч хэрэгжилт хангалттай бус\",2,IF(C116=\"Байдаг ч сайжруулах шаардлагатай\",3,IF(C116=\"Байхгүй ч одоо боловсруулж байгаа\",4,IF(C116=\"Байдаггүй\",5,0)))))","v":0},{"$f":"IFERROR(VLOOKUP(D116*E116,'Үнэлгээ тайлбар'!$B$2:$C$15,2,FALSE),\"N/A\")","v":"N/A"}]
["43","Танай байгууллагад бусад аж ахуй нэгжийн данс, үйлчилгээг гуравдагч этгээд ашиглахаас сэргийлсэн бодлогын баримт бичиг, журам, заавар байдаг уу?",{"$f":"'Байгууллагын өөрийн үнэлгээ'!C117","v":0},{"$f":"'Байгууллагын өөрийн үнэлгээ'!D117","v":0},0,{"$f":"IFERROR(VLOOKUP(D117*E117,'Үнэлгээ тайлбар'!$B$2:$C$15,2,FALSE),\"N/A\")","v":"N/A"}]
["44","Танай байгууллага хориг арга хэмжээтэй холбоотой харилцагчийн талаар мэдээлэл цуглуулж, шалгадаг уу?",{"$f":"'Байгууллагын өөрийн үнэлгээ'!C118","v":0},{"$f":"'Байгууллагын өөрийн үнэлгээ'!D118","v":0},0,{"$f":"IFERROR(VLOOKUP(D118*E118,'Үнэлгээ тайлбар'!$B$2:$C$15,2,FALSE),\"N/A\")","v":"N/A"}]
["45","Хориг арга хэмжээг шалгахад ашигладаг арга хэмжээний жагсаалтыг бичнэ үү?"]
["5. ҮЙЛ АЖИЛЛАГААНЫ ЭРСДЭЛ",null,null,{"$f":"IF(SUM(D121,D127,D131)<=2,\"N/A\",IF(SUM(D121,D127,D131)<=5,1,IF(SUM(D121,D127,D131)<=8,2,IF(SUM(D121,D127,D131)<=10,3,IF(SUM(D121,D127,D131)<=13,4,5)))))","v":"N/A"},{"$f":"IF(SUM(E121,E127,E131)<=2,\"N/A\",IF(SUM(E121,E127,E131)<=5,1,IF(SUM(E121,E127,E131)<=8,2,IF(SUM(E121,E127,E131)<=10,3,IF(SUM(E121,E127,E131)<=13,4,5)))))","v":"N/A"},{"$f":"IFERROR(VLOOKUP(D120*E120,'Үнэлгээ тайлбар'!$B$2:$C$15,2,FALSE),\"N/A\")","v":"N/A"}]
[5.0999999999999996,"Хяналт, тайлагнал",null,{"$f":"IF(SUM(D122:D126)<=3,\"N/A\",IF(SUM(D122:D126)<=7,1,IF(SUM(D122:D126)<=10,2,IF(SUM(D122:D126)<=14,3,IF(SUM(D122:D126)<=17,4,5)))))","v":"N/A"},{"$f":"IF(SUM(E122:E126)<=3,\"N/A\",IF(SUM(E122:E126)<=7,1,IF(SUM(E122:E126)<=10,2,IF(SUM(E122:E126)<=14,3,IF(SUM(E122:E126)<=17,4,5)))))","v":"N/A"},{"$f":"IFERROR(VLOOKUP(D121*E121,'Үнэлгээ тайлбар'!$B$2:$C$15,2,FALSE),\"N/A\")","v":"N/A"}]
[46,"Танай байгууллага сэжигтэй үйл ажиллагааг илрүүлэх, тайлагнах эрсдэлд суурилсан бодлогын баримт бичиг, журам, заавартай юу?",{"$f":"'Байгууллагын өөрийн үнэлгээ'!C122","v":0},{"$f":"'Байгууллагын өөрийн үнэлгээ'!D122","v":0},{"$f":"IF(C122=\"Байдаг. Хэрэгжилт хангалттай\",1,IF(C122=\"Байдаг ч хэрэгжилт хангалттай бус\",2,IF(C122=\"Байдаг ч сайжруулах шаардлагатай\",3,IF(C122=\"Байхгүй ч одоо боловсруулж байгаа\",4,IF(C122=\"Байдаггүй\",5,0)))))","v":0},{"$f":"IFERROR(VLOOKUP(D122*E122,'Үнэлгээ тайлбар'!$B$2:$C$15,2,FALSE),\"N/A\")","v":"N/A"}]
[47,"Сэжигтэй үйл ажиллагааг хянахдаа ямар арга, аргачлалыг хэрэглэдэг вэ?",{"$f":"'Байгууллагын өөрийн үнэлгээ'!C123","v":0},{"$f":"'Байгууллагын өөрийн үнэлгээ'!D123","v":0},{"$f":"IF(C123=\"Автоматжуулсан болон гар аргыг хослуулан\",1,IF(C123=\"Автоматжуулсан арга\",2,IF(C123=\"Гар арга\",3,IF(C123=\"Тодорхой арга ашиглахаар боловсруулж байгаа\",4,IF(C123=\"Тодорхой арга ашигладаггүй\",5,0)))))","v":0},{"$f":"IFERROR(VLOOKUP(D123*E123,'Үнэлгээ тайлбар'!$B$2:$C$15,2,FALSE),\"N/A\")","v":"N/A"}]
["47 a","Холимог аргачлалыг сонгосон бол ямар төрлийн гүйлгээг гар аргаар хянадаг вэ? Тайлбар бичнэ үү."]
[48,"Танай байгууллагад сэжигтэй гүйлгээг мэдээлэх зохицуулалт бий юу?",{"$f":"'Байгууллагын өөрийн үнэлгээ'!C125","v":0},{"$f":"'Байгууллагын өөрийн үнэлгээ'!D125","v":0},{"$f":"IF(C125=\"Байдаг. Хэрэгжилт хангалттай\",1,IF(C125=\"Байдаг ч хэрэгжилт хангалттай бус\",2,IF(C125=\"Байдаг ч сайжруулах шаардлагатай\",3,IF(C125=\"Байхгүй ч одоо боловсруулж байгаа\",4,IF(C125=\"Байдаггүй\",5,0)))))","v":0},{"$f":"IFERROR(VLOOKUP(D125*E125,'Үнэлгээ тайлбар'!$B$2:$C$15,2,FALSE),\"N/A\")","v":"N/A"}]
[49,"Танай байгууллагад харилцагчийн гүйлгээ, үйл ажиллагаанд хяналт тавихтай холбоотой гарч буй асуудлыг хянах, шийдвэрлэх бодлогын баримт бичиг, журам, заавар байдаг уу?",{"$f":"'Байгууллагын өөрийн үнэлгээ'!C126","v":0},{"$f":"'Байгууллагын өөрийн үнэлгээ'!D126","v":0},0,{"$f":"IFERROR(VLOOKUP(D126*E126,'Үнэлгээ тайлбар'!$B$2:$C$15,2,FALSE),\"N/A\")","v":"N/A"}]
[5.2,"Төлбөрийн ил тод байдал",null,{"$f":"IF(SUM(D128:D129)<=1,\"N/A\",IF(SUM(D128:D129)<=3,1,IF(SUM(D128:D129)<=5,2,IF(SUM(D128:D129)<=7,3,IF(SUM(D128:D129)<=9,4,5)))))","v":"N/A"},{"$f":"IF(SUM(E128:E129)<=1,\"N/A\",IF(SUM(E128:E129)<=3,1,IF(SUM(E128:E129)<=5,2,IF(SUM(E128:E129)<=7,3,IF(SUM(E128:E129)<=9,4,5)))))","v":"N/A"},{"$f":"IFERROR(VLOOKUP(D127*E127,'Үнэлгээ тайлбар'!$B$2:$C$15,2,FALSE),\"N/A\")","v":"N/A"}]
[50,"Цахим шилжүүлгийн холбогдох мэдээллийн үнэн зөв эсэхэд хяналт тавих журам, заавар байдаг уу?",{"$f":"'Байгууллагын өөрийн үнэлгээ'!C128","v":0},{"$f":"'Байгууллагын өөрийн үнэлгээ'!D128","v":0},{"$f":"IF(C128=\"Хангалттай\",1,IF(C128=\"Сайн\",2,IF(C128=\"Дунд\",3,IF(C128=\"Хангалтгүй\",4,IF(C128=\"Муу\",5,0)))))","v":0},{"$f":"IFERROR(VLOOKUP(D128*E128,'Үнэлгээ тайлбар'!$B$2:$C$15,2,FALSE),\"N/A\")","v":"N/A"}]
[51,"Цахим шилжүүлгийн холбогдох мэдээллийн үнэн зөв эсэхэд хяналт тавьдаг уу? Хэрэгжилтийг үнэлнэ үү.",{"$f":"'Байгууллагын өөрийн үнэлгээ'!C129","v":0},{"$f":"'Байгууллагын өөрийн үнэлгээ'!D129","v":0},0,{"$f":"IFERROR(VLOOKUP(D129*E129,'Үнэлгээ тайлбар'!$B$2:$C$15,2,FALSE),\"N/A\")","v":"N/A"}]
["51 a","Хэрэв \"Хангалтгүй эсвэл муу\" сонголт хийсэн бол тайлбар оруулна уу"]
["5.3","Сургалт ба мэдлэг боловсрол ",null,{"$f":"IF(SUM(D132,D136)<=1,\"N/A\",IF(SUM(D132,D136)<=3,1,IF(SUM(D132,D136)<=5,2,IF(SUM(D132,D136)<=7,3,IF(SUM(D132,D136)<=9,4,5)))))","v":"N/A"},{"$f":"IF(SUM(E132,E136)<=1,\"N/A\",IF(SUM(E132,E136)<=3,1,IF(SUM(E132,E136)<=5,2,IF(SUM(E132,E136)<=7,3,IF(SUM(E132,E136)<=9,4,5)))))","v":"N/A"},{"$f":"IFERROR(VLOOKUP(D131*E131,'Үнэлгээ тайлбар'!$B$2:$C$15,2,FALSE),\"N/A\")","v":"N/A"}]
["52","Дараах сургалтуудыг ямар давтамжтай явуулдаг вэ?",null,{"$f":"IF(SUM(D133:D135)<=2,\"N/A\",IF(SUM(D133:D135)<=5,1,IF(SUM(D133:D135)<=8,2,IF(SUM(D133:D135)<=10,3,IF(SUM(D133:D135)<=13,4,5)))))","v":"N/A"},{"$f":"IF(SUM(E133:E135)<=2,\"N/A\",IF(SUM(E133:E135)<=5,1,IF(SUM(E133:E135)<=8,2,IF(SUM(E133:E135)<=10,3,IF(SUM(E133:E135)<=13,4,5)))))","v":"N/A"},{"$f":"IFERROR(VLOOKUP(D132*E132,'Үнэлгээ тайлбар'!$B$2:$C$15,2,FALSE),\"N/A\")","v":"N/A"}]
["52 a","Байгууллагын бүтээгдэхүүн, үйлчилгээтэй холбоотой мөнгө угаах болон терроризмыг санхүүжүүлэх эрсдэл",{"$f":"'Байгууллагын өөрийн үнэлгээ'!C133","v":0},{"$f":"'Байгууллагын өөрийн үнэлгээ'!D133","v":0},{"$f":"IF(C133=\"Улиралд 1 ба түүнээс дээш\",1,IF(C133=\"Хагас жилд 1 ба түүнээс дээш\",2,IF(C133=\"Жилд 1 ба түүнээс дээш\",3,IF(C133=\"2 жилд 1 удаа\",4,IF(C133=\"Огт хийдэггүй\",5,0)))))","v":0},{"$f":"IFERROR(VLOOKUP(D133*E133,'Үнэлгээ тайлбар'!$B$2:$C$15,2,FALSE),\"N/A\")","v":"N/A"}]
["52 b","МУТС болон хориг арга хэмжээний зөрчлийг хянах, шийдвэрлэх үйл ажиллагаа",{"$f":"'Байгууллагын өөрийн үнэлгээ'!C134","v":0},{"$f":"'Байгууллагын өөрийн үнэлгээ'!D134","v":0},{"$f":"IF(C134=\"Улиралд 1 ба түүнээс дээш\",1,IF(C134=\"Хагас жилд 1 ба түүнээс дээш\",2,IF(C134=\"Жилд 1 ба түүнээс дээш\",3,IF(C134=\"2 жилд 1 удаа\",4,IF(C134=\"Огт хийдэггүй\",5,0)))))","v":0},{"$f":"IFERROR(VLOOKUP(D134*E134,'Үнэлгээ тайлбар'!$B$2:$C$15,2,FALSE),\"N/A\")","v":"N/A"}]
["52 c","Комплайнсын эрсдэлийн удирдлага",{"$f":"'Байгууллагын өөрийн үнэлгээ'!C135","v":0},{"$f":"'Байгууллагын өөрийн үнэлгээ'!D135","v":0},0,{"$f":"IFERROR(VLOOKUP(D135*E135,'Үнэлгээ тайлбар'!$B$2:$C$15,2,FALSE),\"N/A\")","v":"N/A"}]
[53,"Дээрх сургалтад доорх оролцогч талуудаас алиныг нь хамруулдаг вэ? \n1) ТУЗ, гүйцэтгэх удирдлага\n2) Хамгаалалтын I, II, III шугамын ажилтнууд\n3) Гуравдагч байгууллагын ажилтнууд\n4) Гэрээт ажилтнууд",{"$f":"'Байгууллагын өөрийн үнэлгээ'!C136","v":0},{"$f":"'Байгууллагын өөрийн үнэлгээ'!D136","v":0},{"$f":"IF(C136=\"Бүгдийг хамруулдаг\",1,IF(C136=\"Зөвхөн гуравыг нь хамруулдаг\",2,IF(C136=\"Зөвхөн хоёрыг нь хамруулдаг\",3,IF(C136=\"Зөвхөн нэгийг нь хамруулдаг\",4,IF(C136=\"Огт хамруулдаггүй\",5,0)))))","v":0},{"$f":"IFERROR(VLOOKUP(D136*E136,'Үнэлгээ тайлбар'!$B$2:$C$15,2,FALSE),\"N/A\")","v":"N/A"}]

{"sheet":"Result_2","index":3,"n_rows":42,"n_cols":8,"rows_kept":42,"cut":false,"hidden":false,"merged":[[25,1,26,1],[23,4,23,5],[23,6,23,7],[23,3,24,3],[23,2,24,2],[36,2,37,2],[36,3,37,3],[36,4,36,5],[12,1,12,7],[14,3,14,7],[16,1,20,1],[1,1,1,7],[3,3,3,7],[5,1,9,1]]}
[]
[null,"Байгууллагын комплайнсын эрсдэлийн өөрийн үнэлгээний үр дүн"]
[]
[null,null,null,"Эрсдэлийн нөлөө "]
[null,null,null,1,2,3,4,5]
[null,"Эрсдэлийн магадлал",1,{"$f":"_xlfn.TEXTJOIN(CHAR(10),TRUE,IF(impact=D5,IF(prob=$C$6,\"🔹 \"&Title,\"\"),\"\"))","v":""},{"$f":"_xlfn.TEXTJOIN(CHAR(10),TRUE,IF(impact=E5,IF(prob=$C$6,\"🔹 \"&Title,\"\"),\"\"))","v":""},{"$f":"_xlfn.TEXTJOIN(CHAR(10),TRUE,IF(impact=F5,IF(prob=$C$6,\"🔹 \"&Title,\"\"),\"\"))","v":""},{"$f":"_xlfn.TEXTJOIN(CHAR(10),TRUE,IF(impact=G5,IF(prob=$C$6,\"🔹 \"&Title,\"\"),\"\"))","v":""},{"$f":"_xlfn.TEXTJOIN(CHAR(10),TRUE,IF(impact=H5,IF(prob=$C$6,\"🔹 \"&Title,\"\"),\"\"))","v":""}]
[null,null,2,{"$f":"_xlfn.TEXTJOIN(CHAR(10),TRUE,IF(impact=D5,IF(prob=$C$7,\"🔹 \"&Title,\"\"),\"\"))","v":""},{"$f":"_xlfn.TEXTJOIN(CHAR(10),TRUE,IF(impact=E5,IF(prob=$C$7,\"🔹 \"&Title,\"\"),\"\"))","v":""},{"$f":"_xlfn.TEXTJOIN(CHAR(10),TRUE,IF(impact=F5,IF(prob=$C$7,\"🔹 \"&Title,\"\"),\"\"))","v":""},{"$f":"_xlfn.TEXTJOIN(CHAR(10),TRUE,IF(impact=G5,IF(prob=$C$7,\"🔹 \"&Title,\"\"),\"\"))","v":""},{"$f":"_xlfn.TEXTJOIN(CHAR(10),TRUE,IF(impact=H5,IF(prob=$C$7,\"🔹 \"&Title,\"\"),\"\"))","v":""}]
[null,null,3,{"$f":"_xlfn.TEXTJOIN(CHAR(10),TRUE,IF(impact=D5,IF(prob=$C$8,\"🔹 \"&Title,\"\"),\"\"))","v":""},{"$f":"_xlfn.TEXTJOIN(CHAR(10),TRUE,IF(impact=E5,IF(prob=$C$8,\"🔹 \"&Title,\"\"),\"\"))","v":""},{"$f":"_xlfn.TEXTJOIN(CHAR(10),TRUE,IF(impact=F5,IF(prob=$C$8,\"🔹 \"&Title,\"\"),\"\"))","v":""},{"$f":"_xlfn.TEXTJOIN(CHAR(10),TRUE,IF(impact=G5,IF(prob=$C$8,\"🔹 \"&Title,\"\"),\"\"))","v":""},{"$f":"_xlfn.TEXTJOIN(CHAR(10),TRUE,IF(impact=H5,IF(prob=$C$8,\"🔹 \"&Title,\"\"),\"\"))","v":""}]
[null,null,4,{"$f":"_xlfn.TEXTJOIN(CHAR(10),TRUE,IF(impact=D5,IF(prob=$C$9,\"🔹 \"&Title,\"\"),\"\"))","v":""},{"$f":"_xlfn.TEXTJOIN(CHAR(10),TRUE,IF(impact=E5,IF(prob=$C$9,\"🔹 \"&Title,\"\"),\"\"))","v":""},{"$f":"_xlfn.TEXTJOIN(CHAR(10),TRUE,IF(impact=F5,IF(prob=$C$9,\"🔹 \"&Title,\"\"),\"\"))","v":""},{"$f":"_xlfn.TEXTJOIN(CHAR(10),TRUE,IF(impact=G5,IF(prob=$C$9,\"🔹 \"&Title,\"\"),\"\"))","v":""},{"$f":"_xlfn.TEXTJOIN(CHAR(10),TRUE,IF(impact=H5,IF(prob=$C$9,\"🔹 \"&Title,\"\"),\"\"))","v":""}]
[null,null,5,{"$f":"_xlfn.TEXTJOIN(CHAR(10),TRUE,IF(impact=D5,IF(prob=$C$10,\"🔹 \"&Title,\"\"),\"\"))","v":""},{"$f":"_xlfn.TEXTJOIN(CHAR(10),TRUE,IF(impact=E5,IF(prob=$C$10,\"🔹 \"&Title,\"\"),\"\"))","v":""},{"$f":"_xlfn.TEXTJOIN(CHAR(10),TRUE,IF(impact=F5,IF(prob=$C$10,\"🔹 \"&Title,\"\"),\"\"))","v":""},{"$f":"_xlfn.TEXTJOIN(CHAR(10),TRUE,IF(impact=G5,IF(prob=$C$10,\"🔹 \"&Title,\"\"),\"\"))","v":""},{"$f":"_xlfn.TEXTJOIN(CHAR(10),TRUE,IF(impact=H5,IF(prob=$C$10,\"🔹 \"&Title,\"\"),\"\"))","v":""}]
[]
[]
[null,"Эрсдэлийн төрлөөрх үнэлгээний үр дүн"]
[]
[null,null,null,"Эрсдэлийн нөлөө "]
[null,null,null,1,2,3,4,5]
[null,"Эрсдэлийн магадлал",1,{"$f":"_xlfn.TEXTJOIN(CHAR(10),TRUE,IF(impact3=D16,IF(prob3=$C$6,\"🔹 \"&title3,\"\"),\"\"))","v":{"$error":"#DIV/0!"}},{"$f":"_xlfn.TEXTJOIN(CHAR(10),TRUE,IF(impact3=E16,IF(prob3=$C$6,\"🔹 \"&title3,\"\"),\"\"))","v":{"$error":"#DIV/0!"}},{"$f":"_xlfn.TEXTJOIN(CHAR(10),TRUE,IF(impact3=F16,IF(prob3=$C$6,\"🔹 \"&title3,\"\"),\"\"))","v":{"$error":"#DIV/0!"}},{"$f":"_xlfn.TEXTJOIN(CHAR(10),TRUE,IF(impact3=G16,IF(prob3=$C$6,\"🔹 \"&title3,\"\"),\"\"))","v":{"$error":"#DIV/0!"}},{"$f":"_xlfn.TEXTJOIN(CHAR(10),TRUE,IF(impact3=H16,IF(prob3=$C$6,\"🔹 \"&title3,\"\"),\"\"))","v":{"$error":"#DIV/0!"}}]
[null,null,2,{"$f":"_xlfn.TEXTJOIN(CHAR(10),TRUE,IF(impact3=D16,IF(prob3=$C$7,\"🔹 \"&title3,\"\"),\"\"))","v":{"$error":"#DIV/0!"}},{"$f":"_xlfn.TEXTJOIN(CHAR(10),TRUE,IF(impact3=E16,IF(prob3=$C$7,\"🔹 \"&title3,\"\"),\"\"))","v":{"$error":"#DIV/0!"}},{"$f":"_xlfn.TEXTJOIN(CHAR(10),TRUE,IF(impact3=F16,IF(prob3=$C$7,\"🔹 \"&title3,\"\"),\"\"))","v":{"$error":"#DIV/0!"}},{"$f":"_xlfn.TEXTJOIN(CHAR(10),TRUE,IF(impact3=G16,IF(prob3=$C$7,\"🔹 \"&title3,\"\"),\"\"))","v":{"$error":"#DIV/0!"}},{"$f":"_xlfn.TEXTJOIN(CHAR(10),TRUE,IF(impact3=H16,IF(prob3=$C$7,\"🔹 \"&title3,\"\"),\"\"))","v":{"$error":"#DIV/0!"}}]
[null,null,3,{"$f":"_xlfn.TEXTJOIN(CHAR(10),TRUE,IF(impact3=D16,IF(prob3=$C$8,\"🔹 \"&title3,\"\"),\"\"))","v":{"$error":"#DIV/0!"}},{"$f":"_xlfn.TEXTJOIN(CHAR(10),TRUE,IF(impact3=E16,IF(prob3=$C$8,\"🔹 \"&title3,\"\"),\"\"))","v":{"$error":"#DIV/0!"}},{"$f":"_xlfn.TEXTJOIN(CHAR(10),TRUE,IF(impact3=F16,IF(prob3=$C$8,\"🔹 \"&title3,\"\"),\"\"))","v":{"$error":"#DIV/0!"}},{"$f":"_xlfn.TEXTJOIN(CHAR(10),TRUE,IF(impact3=G16,IF(prob3=C19,\"🔹 \"&title3,\"\"),\"\"))","v":{"$error":"#DIV/0!"}},{"$f":"_xlfn.TEXTJOIN(CHAR(10),TRUE,IF(impact3=H16,IF(prob3=$C$8,\"🔹 \"&title3,\"\"),\"\"))","v":{"$error":"#DIV/0!"}}]
[null,null,4,{"$f":"_xlfn.TEXTJOIN(CHAR(10),TRUE,IF(impact3=D16,IF(prob3=$C$9,\"🔹 \"&title3,\"\"),\"\"))","v":{"$error":"#DIV/0!"}},{"$f":"_xlfn.TEXTJOIN(CHAR(10),TRUE,IF(impact3=E16,IF(prob3=$C$9,\"🔹 \"&title3,\"\"),\"\"))","v":{"$error":"#DIV/0!"}},{"$f":"_xlfn.TEXTJOIN(CHAR(10),TRUE,IF(impact3=F16,IF(prob3=$C$9,\"🔹 \"&title3,\"\"),\"\"))","v":{"$error":"#DIV/0!"}},{"$f":"_xlfn.TEXTJOIN(CHAR(10),TRUE,IF(impact3=G16,IF(prob3=$C$9,\"🔹 \"&title3,\"\"),\"\"))","v":{"$error":"#DIV/0!"}},{"$f":"_xlfn.TEXTJOIN(CHAR(10),TRUE,IF(impact3=H16,IF(prob3=$C$9,\"🔹 \"&title3,\"\"),\"\"))","v":{"$error":"#DIV/0!"}}]
[null,null,5,{"$f":"_xlfn.TEXTJOIN(CHAR(10),TRUE,IF(impact3=D16,IF(prob3=$C$10,\"🔹 \"&title3,\"\"),\"\"))","v":{"$error":"#DIV/0!"}},{"$f":"_xlfn.TEXTJOIN(CHAR(10),TRUE,IF(impact3=E16,IF(prob3=$C$10,\"🔹 \"&title3,\"\"),\"\"))","v":{"$error":"#DIV/0!"}},{"$f":"_xlfn.TEXTJOIN(CHAR(10),TRUE,IF(impact3=F16,IF(prob3=$C$10,\"🔹 \"&title3,\"\"),\"\"))","v":{"$error":"#DIV/0!"}},{"$f":"_xlfn.TEXTJOIN(CHAR(10),TRUE,IF(impact3=G16,IF(prob3=$C$10,\"🔹 \"&title3,\"\"),\"\"))","v":{"$error":"#DIV/0!"}},{"$f":"_xlfn.TEXTJOIN(CHAR(10),TRUE,IF(impact3=H16,IF(prob3=$C$10,\"🔹 \"&title3,\"\"),\"\"))","v":{"$error":"#DIV/0!"}}]
[null,null,null,"Санхүүгийн Зохицуулах Хорооны үнэлгээний үр дүн"]
[]
[null,null,null,"Бүлэг","Байгууллагын өөрийн үнэлгээ"]
[null,null,null,null,"Эрсдэлийн үр нөлөө","Эрсдэлийн магадлал"]
[null,null,1,"Бизнесийн ёс зүй, нийгмийн хариуцлага",{"$f":"Result_1!D19","v":"N/A"},{"$f":"Result_1!E19","v":"N/A"}]
[null,null,2,"Аудит ба залилан",{"$f":"Result_1!D31","v":"N/A"},{"$f":"Result_1!E31","v":"N/A"}]
[null,null,3,"Хээл, хахууль ба авилга",{"$f":"Result_1!D37","v":"N/A"},{"$f":"Result_1!E37","v":"N/A"}]
[null,null,4,"Харилцагчийг таньж мэдэх үйл ажиллагаа",{"$f":"Result_1!D41","v":"N/A"},{"$f":"Result_1!E41","v":"N/A"}]
[null,null,5,"МУТС ба хориг арга хэмжээ, бодлогын баримт бичиг, дүрэм, журам",{"$f":"Result_1!D81","v":"N/A"},{"$f":"Result_1!E81","v":"N/A"}]
[null,null,6,"МУТС ба хориг арга хэмжээний хөтөлбөр",{"$f":"Result_1!D96","v":"N/A"},{"$f":"Result_1!E96","v":"N/A"}]
[null,null,7,"Хориг арга хэмжээ",{"$f":"Result_1!D115","v":"N/A"},{"$f":"Result_1!E115","v":"N/A"}]
[null,null,8,"Хяналт, тайлагнал",{"$f":"Result_1!D121","v":"N/A"},{"$f":"Result_1!E121","v":"N/A"}]
[null,null,9,"Төлбөрийн ил тод байдал",{"$f":"Result_1!D127","v":"N/A"},{"$f":"Result_1!E127","v":"N/A"}]
[null,null,10,"Сургалт ба мэдлэг боловсрол ",{"$f":"Result_1!D131","v":"N/A"},{"$f":"Result_1!E131","v":"N/A"}]
[]
[null,null,null,"Эрсдэл","Эрсдэлийн төрлөөрх үнэлгээ"]
[null,null,null,null,"Эрсдэлийн үр нөлөө","Эрсдэлийн магадлал"]
[null,null,1,"Ёс зүйн эрсдэл",{"$f":"ROUND(AVERAGE(E26:E27),0.5)","v":{"$error":"#DIV/0!"}},{"$f":"ROUND(AVERAGE(F26:F27),0.5)","v":{"$error":"#DIV/0!"}}]
[null,null,2,"Нэр хүндийн эрсдэл",{"$f":"ROUND(AVERAGE(E28:E29),0.5)","v":{"$error":"#DIV/0!"}},{"$f":"ROUND(AVERAGE(F28:F29),0.5)","v":{"$error":"#DIV/0!"}}]
[null,null,3,"Мөнгө угаах, терроризмыг санхүүжүүлэх эрсдэл",{"$f":"ROUND(AVERAGE(E30:E32),0.5)","v":{"$error":"#DIV/0!"}},{"$f":"ROUND(AVERAGE(F30:F32),0.5)","v":{"$error":"#DIV/0!"}}]
[null,null,4,"Үйл ажиллагааны эрсдэл",{"$f":"ROUND(AVERAGE(E33:E35),0.5)","v":{"$error":"#DIV/0!"}},{"$f":"ROUND(AVERAGE(F33:F35),0.5)","v":{"$error":"#DIV/0!"}}]

{"sheet":"Үнэлгээ тайлбар","index":4,"n_rows":15,"n_cols":3,"rows_kept":15,"cut":false,"hidden":true,"merged":[]}
[null,"Risk rating"]
[null,1,"1 - Бага"]
[null,2,"2 - Бага"]
[null,3,"3 - Бага"]
[null,4,"4 - Бага"]
[null,5,"5 - Дунд"]
[null,6,"6 - Дунд"]
[null,8,"8 - Дунд"]
[null,9,"9 - Дунд"]
[null,10,"10 - Их"]
[null,12,"12 - Их"]
[null,15,"15 - Их"]
[null,16,"16 - Их"]
[null,20,"20 - Анхаарах"]
[null,25,"25 - Анхаарах"]